Workbook

Sheet Cover
B2: 3GPP TSG-RAN WG4 Meeting #97-e | J2: R4-2017557
B3: Electronic Meeting, 2 - 13 Nov., 2020
B5: Source: CATT
B6: Title: Summary of ideal and impairment results for NR HST demodulation requirements
B7: Agenda: 7.15.3.2
B8: Document for: Information

Sheet Parameters
C2: Parameters for deriving performance requirements
C3: Ideal Span Threshold | D3: 2 | E3: dB
C4: Impairment Span Threshold | D4: 4 | E4: dB
B7: Notes | C7: 1. Call function DerivingPerfReq()
C8: 2. If the ruls does not apply, or fails, -100dB or less will be returned
D9: -100 | E9: Not enough input
D10: -101 | E10: Input should be pairs
D11: -102 | E11: Too large span for impairment
D12: -103 | E12: After removal iteration, not enough input

Sheet PUSCH fading
A1: Channel model | B1: Propagation condition | C1: Carrier frequency (GHz) | D1: SCS | E1: CBW | F1: Frequency Offset(Hz) | G1: Tx/Rx | H1: PUSCH mapping type | I1: DMRS | J1: l0 | K1: MCS | L1: 38.104 req | M1: 38.141 req | N1: Samsung | P1: ZTE | R1: CMCC | T1: CATT | V1: Nokia | X1: Huawei | Z1: Ericsson | AB1: Intel | AD1: SPAN | AF1: AVERAGE
N2: Ideal | O2: Impairment | P2: Ideal | Q2: Impairment | R2: Ideal | S2: Impairment | T2: Ideal | U2: Impairment | V2: Ideal | W2: Impairment | X2: Ideal | Y2: Impairment | Z2: Ideal | AA2: Impairment | AB2: Ideal | AC2: Impairment | AD2: Ideal | AE2: Impairment | AF2: Ideal | AG2: Impairment
A3: Multi-path fading | B3: TDLC300-600 | C3: 2.1 | D3: 15KHz | E3: 5MHz | F3: 0 | G3: 1T2R | H3: Type A | I3: 1+1+1 | J3: 2 or 3 | K3: 2 | L3: =DerivingPerfReq(N3:AC3) -> -2 | M3: =IF(L3>-100,L3+0.6,L3) -> -1.4 | N3: -3.37 | O3: -1.37 | T3: -4.51 | U3: -2.01 | V3: -4.61 | W3: -2.11 | X3: -4.39 | Y3: -2.39 | Z3: -4.1 | AA3: -2 | AB3: -9.8 | AC3: -7.3 | AD3: =MAX(N3,P3,R3,T3,V3,X3,Z3,AB3)-MIN(N3,P3,R3,T3,V3,X3,Z3,AB3) -> 6.43 | AE3: =MAX(O3,Q3,S3,U3,W3,Y3,AA3,AC3)-MIN(O3,Q3,S3,U3,W3,Y3,AA3,AC3) -> 5.93 | AF3: =AVERAGE(N3,P3,R3,T3,V3,X3,Z3,AB3) -> -5.13 | AG3: -2.863333333
C4: 3.6 | D4: 30KHz | E4: 10MHz | F4: 0 | G4: 1T2R | H4: Type A | I4: 1+1+1 | J4: 2 or 3 | K4: 2 | L4: -100 | M4: =IF(L4>-100,L4+0.6,L4) -> -100 | T4: -4.94 | U4: -2.44 | AD4: 0 | AE4: 0 | AF4: -4.94 | AG4: -2.44
B5: TDLC300-1200 | C5: 2.1 | D5: 15KHz | E5: 5MHz | F5: 0 | G5: 1T2R | H5: Type A | I5: 1+1+1 | J5: 2 or 3 | K5: 2 | L5: =DerivingPerfReq(N5:AC5) -> -100 | M5: -100 | T5: -1.46 | U5: 1.04 | AD5: =MAX(N5,P5,R5,T5,V5,X5,Z5,AB5)-MIN(N5,P5,R5,T5,V5,X5,Z5,AB5) -> 0 | AE5: =MAX(O5,Q5,S5,U5,W5,Y5,AA5,AC5)-MIN(O5,Q5,S5,U5,W5,Y5,AA5,AC5) -> 0 | AF5: =AVERAGE(N5,P5,R5,T5,V5,X5,Z5,AB5) -> -1.46 | AG5: =AVERAGE(O5,Q5,S5,U5,W5,Y5,AA5,AC5) -> 1.04
C6: 3.6 | D6: 30KHz | E6: 10MHz | F6: 0 | G6: 1T2R | H6: Type A | I6: 1+1+1 | J6: 2 or 3 | K6: 2 | L6: -1.8 | M6: -1.2 | N6: -3.4 | O6: -1.4 | T6: -4.62 | U6: -2.12 | V6: -4.63 | W6: -2.13 | X6: -3.98 | Y6: -1.98 | Z6: -3.9 | AA6: -1.6 | AB6: -9.8 | AC6: -7.3 | AD6: 6.4 | AE6: 5.9 | AF6: -5.055 | AG6: -2.755

Sheet PUSCH 350kmph
A1: Channel model | B1: Propagation condition | C1: Carrier frequency (GHz) | D1: SCS | E1: CBW | F1: Maximum Doppler shift | G1: Tx/Rx | H1: PUSCH mapping type | I1: DMRS | J1: l0 | K1: MCS | L1: 38.104 req | M1: 38.141 req | N1: Samsung | P1: ZTE | R1: CMCC | T1: CATT | V1: Nokia | X1: Huawei | Z1: Ericsson | AB1: Intel | AD1: SPAN | AF1: AVERAGE
N2: Ideal | O2: Impairment | P2: Ideal | Q2: Impairment | R2: Ideal | S2: Impairment | T2: Ideal | U2: Impairment | V2: Ideal | W2: Impairment | X2: Ideal | Y2: Impairment | Z2: Ideal | AA2: Impairment | AB2: Ideal | AC2: Impairment | AD2: Ideal | AE2: Impairment | AF2: Ideal | AG2: Impairment
A3: AWGN | B3: Tunnel | C3: 2.1 | D3: 15KHz | E3: 10MHz | F3: 1340Hz | G3: 1T1R | H3: Type A | I3: 1+1+1 | J3: 2 or 3 | K3: 2 | L3: =DerivingPerfReq(N3:AC3) -> -0.8 | M3: =IF(L3>-100,L3+0.3,L3) -> -0.5 | N3: -2.83 | O3: -0.83 | T3: -3.47 | U3: -0.97 | V3: -3.19 | W3: -0.69 | X3: -3.51 | Y3: =X3+2 -> -1.51 | Z3: -3 | AA3: -0.9 | AB3: -2.4 | AC3: 0.1 | AD3: =MAX(N3,P3,R3,T3,V3,X3,Z3,AB3)-MIN(N3,P3,R3,T3,V3,X3,Z3,AB3) -> 1.11 | AE3: =MAX(O3,Q3,S3,U3,W3,Y3,AA3,AC3)-MIN(O3,Q3,S3,U3,W3,Y3,AA3,AC3) -> 1.61 | AF3: =AVERAGE(N3,P3,R3,T3,V3,X3,Z3,AB3) -> -3.066666667 | AG3: =AVERAGE(O3,Q3,S3,U3,W3,Y3,AA3,AC3) -> -0.8
D4: 15KHz | E4: 10MHz | F4: 1340Hz | G4: 1T2R | H4: Type A | I4: 1+1+1 | J4: 2 or 3 | K4: 2 | L4: =DerivingPerfReq(N4:AC4) -> -3.6 | M4: =IF(L4>-100,L4+0.3,L4) -> -3.3 | N4: -5.84 | O4: -3.84 | P4: -5.62 | Q4: =P4+2.5 -> -3.12 | T4: -6.2 | U4: -3.7 | V4: -5.93 | W4: -3.43 | X4: -6.6 | Y4: =X4+2 -> -4.6 | Z4: -6 | AA4: -3.6 | AB4: -5.2 | AC4: -2.7 | AD4: =MAX(N4,P4,R4,T4,V4,X4,Z4,AB4)-MIN(N4,P4,R4,T4,V4,X4,Z4,AB4) -> 1.4 | AE4: =MAX(O4,Q4,S4,U4,W4,Y4,AA4,AC4)-MIN(O4,Q4,S4,U4,W4,Y4,AA4,AC4) -> 1.9 | AF4: =AVERAGE(N4,P4,R4,T4,V4,X4,Z4,AB4) -> -5.912857143 | AG4: =AVERAGE(O4,Q4,S4,U4,W4,Y4,AA4,AC4) -> -3.57
D5: 15KHz | E5: 10MHz | F5: 1340Hz | H5: Type A | I5: 1+1+1 | J5: 2 or 3 | K5: 16 | L5: 8.7 | M5: 9 | N5: 7.32 | O5: 9.32 | P5: 6.13 | Q5: =P5+2.5 -> 8.63 | T5: 5.68 | U5: 8.18 | V5: 5.75 | W5: 8.25 | X5: 5.41 | Y5: 7.41 | Z5: 6.6 | AA5: 9.1 | AB5: 7.3 | AC5: 9.8 | AD5: 1.91 | AE5: 2.39 | AF5: 6.312857143 | AG5: 8.67
C6: 3.6 | D6: 30KHz | E6: 40MHz | F6: 2334Hz | G6: 1T1R | H6: Type A | I6: 1+1+1 | J6: 2 or 3 | K6: 2 | L6: -0.8 | M6: -0.5 | N6: -2.82 | O6: -0.82 | T6: -3.37 | U6: -0.87 | V6: -3.2 | W6: -0.7 | X6: -3.51 | Y6: -1.51 | Z6: -3 | AA6: -1 | AB6: -2.3 | AC6: 0.2 | AD6: 1.21 | AE6: 1.71 | AF6: -3.033333333 | AG6: -0.7833333333
D7: 30KHz | E7: 40MHz | F7: 2334Hz | G7: 1T2R | H7: Type A | I7: 1+1+1 | J7: 2 or 3 | K7: 2 | L7: -3.6 | M7: -3.3 | N7: -5.83 | O7: -3.83 | P7: -5.63 | T7: -6.11 | U7: -3.61 | V7: -5.97 | W7: -3.47 | X7: -6.59 | Y7: -4.59 | Z7: -6.9 | AA7: -3.6 | AB7: -5.1 | AC7: -2.6 | AD7: 1.8 | AE7: 1.99 | AF7: -6.018571429 | AG7: -3.616666667
D8: 30KHz | E8: 40MHz | F8: 2334Hz | H8: Type A | I8: 1+1+1 | J8: 2 or 3 | K8: 16 | L8: 8.7 | M8: 9 | N8: 7.31 | O8: 9.31 | P8: 7.34 | T8: 5.79 | U8: 8.29 | V8: 5.74 | W8: 8.24 | X8: 5.41 | Y8: 7.41 | Z8: 6.5 | AA8: 9 | AB8: 7.2 | AC8: 9.7 | AD8: 1.93 | AE8: 2.29 | AF8: 6.47 | AG8: 8.658333333
B9: Open space | C9: 2.1 | D9: 15KHz | E9: 10MHz | F9: 1340Hz | G9: 1T2R | H9: Type A | I9: 1+1+1 | J9: 2 or 3 | K9: 2 | L9: -3.7 | M9: -3.4 | N9: -5.89 | O9: -3.89 | P9: -5.66 | Q9: =P9+2.5 -> -3.16 | T9: -6.21 | U9: -3.71 | V9: -6 | W9: -3.5 | X9: -6.6 | Y9: -4.6 | Z9: -6.1 | AA9: -4 | AB9: -5.5 | AC9: -3 | AD9: 1.1 | AE9: 1.6 | AF9: -5.994285714 | AG9: -3.694285714
C10: 2.1 | D10: 15KHz | E10: 10MHz | F10: 1340Hz | H10: Type A | I10: 1+1+1 | J10: 2 or 3 | K10: 16 | L10: 8.4 | M10: =IF(L10>-100,L10+0.3,L10) -> 8.7 | N10: 6.87 | O10: 8.87 | P10: 6.54 | Q10: =P10+2.5 -> 9.04 | T10: 5.67 | U10: 8.17 | V10: 5.73 | W10: 8.23 | X10: 5.4 | Y10: 7.4 | Z10: 6.3 | AA10: 8.5 | AB10: 6.4 | AC10: 8.9 | AD10: 1.47 | AE10: 1.64 | AF10: 6.13 | AG10: 8.444285714
C11: 2.1 | D11: 15KHz | E11: 10MHz | F11: 1340Hz | G11: 1T8R | H11: Type A | I11: 1+1+1 | J11: 2 or 3 | K11: 2 | L11: -9.2 | M11: -8.9 | N11: -11.29 | O11: -9.29 | P11: -10.99 | Q11: =P11+2.5 -> -8.49 | T11: -11.2 | U11: -8.7 | V11: -11.27 | W11: -8.77 | X11: -12.57 | Y11: -10.57 | Z11: -12 | AA11: -9.9 | AB11: -11.3 | AC11: -8.8 | AD11: 1.58 | AE11: 2.08 | AF11: -11.51714286 | AG11: -9.217142857
C12: 2.1 | D12: 15KHz | E12: 10MHz | F12: 1340Hz | H12: Type A | I12: 1+1+1 | J12: 2 or 3 | K12: 16 | L12: 2.6 | M12: 2.9 | N12: 1.07 | O12: 3.07 | P12: 0.2 | Q12: 2.7 | T12: -0.24 | U12: 2.26 | V12: -0.25 | W12: 2.25 | X12: 0.4 | Y12: 2.4 | Z12: 0.3 | AA12: 2.6 | AB12: 0.4 | AC12: 2.9 | AD12: 1.32 | AE12: 0.82 | AF12: 0.2685714286 | AG12: 2.597142857
C13: 3.6 | D13: 30KHz | E13: 40MHz | F13: 2334Hz | G13: 1T2R | H13: Type A | I13: 1+1+1 | J13: 2 or 3 | K13: 2 | L13: -3.7 | M13: -3.4 | N13: -5.87 | O13: -3.87 | P13: -5.91 | Q13: -3.41 | T13: -6.12 | U13: -3.62 | V13: -6.01 | W13: -3.51 | X13: -6.67 | Y13: -4.67 | Z13: -6 | AA13: -3.6 | AB13: -5.4 | AC13: -2.9 | AD13: 1.27 | AE13: 1.77 | AF13: -5.997142857 | AG13: -3.654285714
C14: 3.6 | D14: 30KHz | E14: 40MHz | F14: 2334Hz | H14: Type A | I14: 1+1+1 | J14: 2 or 3 | K14: 16 | L14: 8.5 | M14: 8.8 | N14: 6.9 | O14: 8.9 | P14: 6.65 | Q14: 9.15 | T14: 5.76 | U14: 8.26 | V14: 5.72 | W14: 8.22 | X14: 5.4 | Y14: 7.4 | Z14: 6.2 | AA14: 8.5 | AB14: 6.4 | AC14: 8.9 | AD14: 1.5 | AE14: 1.75 | AF14: 6.147142857 | AG14: 8.475714286
C15: 3.6 | D15: 30KHz | E15: 40MHz | F15: 2334Hz | G15: 1T8R | H15: Type A | I15: 1+1+1 | J15: 2 or 3 | K15: 2 | L15: -9.1 | M15: -8.8 | N15: -11.29 | O15: -9.29 | P15: -10.97 | Q15: -8.47 | T15: -11.05 | U15: -8.55 | V15: -11.27 | W15: -8.77 | X15: -12.6 | Y15: -10.6 | Z15: -12 | AA15: -9.5 | AB15: -11.2 | AC15: -8.7 | AD15: 1.63 | AE15: 2.13 | AF15: -11.48285714 | AG15: -9.125714286
C16: 3.6 | D16: 30KHz | E16: 40MHz | F16: 2334Hz | H16: Type A | I16: 1+1+1 | J16: 2 or 3 | K16: 16 | L16: 2.7 | M16: 3 | N16: 1.1 | O16: 3.1 | P16: 0.96 | Q16: 3.46 | T16: -0.11 | U16: 2.39 | V16: -0.26 | W16: 2.24 | X16: 0.4 | Y16: 2.4 | Z16: 0.3 | AA16: 2.4 | AB16: 0.4 | AC16: 2.9 | AD16: 1.36 | AE16: 1.22 | AF16: 0.3985714286 | AG16: 2.698571429
A17: AWGN | B17: Tunnel | C17: 2.1 | D17: 15KHz | E17: 5MHz | F17: 1340Hz | G17: 1T1R | H17: Type A | I17: 1+1+1 | J17: 2 or 3 | K17: 2 | L17: =DerivingPerfReq(N17:AC17) -> -0.7 | M17: =IF(L17>-100,L17+0.3,L17) -> -0.4 | N17: -2.81 | O17: -0.81 | P17: -2.92 | Q17: =P17+2.5 -> -0.42 | T17: -3.45 | U17: -0.95 | V17: -3.08 | W17: -0.58 | X17: -3.51 | Y17: -1.51 | Z17: -3 | AA17: -0.9 | AB17: -2.4 | AC17: 0.1 | AD17: =MAX(N17,P17,R17,T17,V17,X17,Z17,AB17)-MIN(N17,P17,R17,T17,V17,X17,Z17,AB17) -> 1.11 | AE17: =MAX(O17,Q17,S17,U17,W17,Y17,AA17,AC17)-MIN(O17,Q17,S17,U17,W17,Y17,AA17,AC17) -> 1.61 | AF17: =AVERAGE(N17,P17,R17,T17,V17,X17,Z17,AB17) -> -3.024285714 | AG17: =AVERAGE(O17,Q17,S17,U17,W17,Y17,AA17,AC17) -> -0.7242857143
D18: 15KHz | F18: 1340Hz | G18: 1T2R | H18: Type A | I18: 1+1+1 | J18: 2 or 3 | K18: 2 | L18: =DerivingPerfReq(N18:AC18) -> -3.6 | M18: =IF(L18>-100,L18+0.3,L18) -> -3.3 | N18: -5.8 | O18: -3.8 | P18: -5.68 | Q18: =P18+2.5 -> -3.18 | T18: -6.19 | U18: -3.69 | V18: -5.86 | W18: -3.36 | X18: -6.51 | Y18: -4.51 | Z18: -6 | AA18: -3.6 | AB18: -5.3 | AC18: -2.8 | AD18: =MAX(N18,P18,R18,T18,V18,X18,Z18,AB18)-MIN(N18,P18,R18,T18,V18,X18,Z18,AB18) -> 1.21 | AE18: =MAX(O18,Q18,S18,U18,W18,Y18,AA18,AC18)-MIN(O18,Q18,S18,U18,W18,Y18,AA18,AC18) -> 1.71 | AF18: =AVERAGE(N18,P18,R18,T18,V18,X18,Z18,AB18) -> -5.905714286 | AG18: =AVERAGE(O18,Q18,S18,U18,W18,Y18,AA18,AC18) -> -3.562857143
D19: 15KHz | F19: 1340Hz | H19: Type A | I19: 1+1+1 | J19: 2 or 3 | K19: 16 | L19: 8.5 | M19: 8.8 | N19: 7.53 | O19: 9.53 | P19: 6.65 | Q19: =P19+2.5 -> 9.15 | T19: 5.79 | U19: 8.29 | V19: 5.84 | W19: 8.34 | X19: 5.49 | Y19: 7.49 | Z19: 6.7 | AA19: 9.2 | AD19: 2.04 | AE19: 2.04 | AF19: 6.333333333 | AG19: 8.666666667
C20: 3.6 | D20: 30KHz | E20: 10MHz | F20: 2334Hz | G20: 1T1R | H20: Type A | I20: 1+1+1 | J20: 2 or 3 | K20: 2 | L20: -0.8 | M20: -0.5 | N20: -2.88 | O20: -0.88 | T20: -3.47 | U20: -0.97 | V20: -3.15 | W20: -0.65 | X20: -3.51 | Y20: -1.51 | Z20: -3 | AA20: -1 | AB20: -2.5 | AC20: 0 | AD20: 1.01 | AE20: 1.51 | AF20: -3.085 | AG20: -0.835
D21: 30KHz | F21: 2334Hz | G21: 1T2R | H21: Type A | I21: 1+1+1 | J21: 2 or 3 | K21: 2 | L21: -3.7 | M21: -3.4 | N21: -5.87 | O21: -3.87 | T21: -6.23 | U21: -3.73 | V21: -5.93 | W21: -3.43 | X21: -6.51 | Y21: -4.51 | Z21: -6 | AA21: -3.6 | AB21: -5.4 | AC21: -2.9 | AD21: 1.11 | AE21: 1.61 | AF21: -5.99 | AG21: -3.673333333
D22: 30KHz | F22: 2334Hz | H22: Type A | I22: 1+1+1 | J22: 2 or 3 | K22: 16 | L22: 8.4 | M22: 8.7 | N22: 7 | O22: 9 | T22: 5.56 | U22: 8.06 | V22: 5.72 | W22: 8.22 | X22: 5.5 | Y22: 7.5 | Z22: 6.5 | AA22: 9 | AD22: 1.5 | AE22: 1.5 | AF22: 6.056 | AG22: 8.356
B23: Open space | C23: 2.1 | D23: 15KHz | E23: 5MHz | F23: 1340Hz | G23: 1T2R | H23: Type A | I23: 1+1+1 | J23: 2 or 3 | K23: 2 | L23: -3.7 | M23: -3.4 | N23: -5.87 | O23: -3.87 | P23: -5.74 | Q23: =P23+2.5 -> -3.24 | T23: -6.2 | U23: -3.7 | V23: -5.89 | W23: -3.39 | X23: -6.51 | Y23: -4.51 | Z23: -6.1 | AA23: -4 | AB23: -5.4 | AC23: -2.9 | AD23: 1.11 | AE23: 1.61 | AF23: -5.958571429 | AG23: -3.658571429
C24: 2.1 | D24: 15KHz | F24: 1340Hz | H24: Type A | I24: 1+1+1 | J24: 2 or 3 | K24: 16 | L24: 8.5 | M24: 8.8 | N24: 6.96 | O24: 8.96 | P24: 6.56 | Q24: =P24+2.5 -> 9.06 | T24: 5.77 | U24: 8.27 | V24: 5.76 | W24: 8.26 | X24: 5.49 | Y24: 7.49 | Z24: 6.3 | AA24: 8.5 | AB24: 6.7 | AC24: 9.2 | AD24: 1.47 | AE24: 1.71 | AF24: 6.22 | AG24: 8.534285714
C25: 2.1 | D25: 15KHz | F25: 1340Hz | G25: 1T8R | H25: Type A | I25: 1+1+1 | J25: 2 or 3 | K25: 2 | L25: -9.1 | M25: -8.8 | N25: -11.18 | O25: -9.18 | P25: -10.96 | Q25: =P25+2.5 -> -8.46 | T25: -11.27 | U25: -8.77 | V25: -11.22 | W25: -8.72 | X25: -12.44 | Y25: -10.44 | Z25: -11.9 | AA25: -9.8 | AB25: -10.7 | AC25: -8.2 | AD25: 1.74 | AE25: 2.24 | AF25: -11.38142857 | AG25: -9.081428571
C26: 2.1 | D26: 15KHz | F26: 1340Hz | H26: Type A | I26: 1+1+1 | J26: 2 or 3 | K26: 16 | L26: 2.8 | M26: 3.1 | N26: 1.14 | O26: 3.14 | P26: 0.7 | Q26: 3.2 | T26: -0.13 | U26: 2.37 | V26: -0.18 | W26: 2.32 | X26: 0.49 | Y26: 2.49 | Z26: 0.3 | AA26: 2.6 | AB26: 1.3 | AC26: 3.8 | AD26: 1.48 | AE26: 1.48 | AF26: 0.5171428571 | AG26: 2.845714286
C27: 3.6 | D27: 30KHz | E27: 10MHz | F27: 2334Hz | G27: 1T2R | H27: Type A | I27: 1+1+1 | J27: 2 or 3 | K27: 2 | L27: -3.7 | M27: -3.4 | N27: -5.92 | O27: -3.92 | T27: -6.23 | U27: -3.73 | V27: -5.95 | W27: -3.45 | X27: -6.54 | Y27: -4.54 | Z27: -6 | AA27: -3.6 | AB27: -5.4 | AC27: -2.9 | AD27: 1.14 | AE27: 1.64 | AF27: -6.006666667 | AG27: -3.69
C28: 3.6 | D28: 30KHz | F28: 2334Hz | H28: Type A | I28: 1+1+1 | J28: 2 or 3 | K28: 16 | L28: 8.3 | M28: 8.6 | N28: 6.62 | O28: 8.62 | T28: 5.55 | U28: 8.05 | V28: 5.65 | W28: 8.15 | X28: 5.49 | Y28: 7.49 | Z28: 6.2 | AA28: 8.5 | AB28: 6.3 | AC28: 8.8 | AD28: 1.13 | AE28: 1.31 | AF28: 5.968333333 | AG28: 8.268333333
C29: 3.6 | D29: 30KHz | F29: 2334Hz | G29: 1T8R | H29: Type A | I29: 1+1+1 | J29: 2 or 3 | K29: 2 | L29: -9.2 | M29: -8.9 | N29: -11.18 | O29: -9.18 | T29: -11.29 | U29: -8.79 | V29: -11.25 | W29: -8.75 | X29: -12.48 | Y29: -10.48 | Z29: -12 | AA29: -9.5 | AB29: -10.8 | AC29: -8.3 | AD29: 1.68 | AE29: 2.18 | AF29: -11.5 | AG29: -9.166666667
C30: 3.6 | D30: 30KHz | F30: 2334Hz | H30: Type A | I30: 1+1+1 | J30: 2 or 3 | K30: 16 | L30: 2.5 | M30: 2.8 | N30: 0.87 | O30: 2.87 | T30: -0.34 | U30: 2.16 | V30: -0.27 | W30: 2.23 | X30: 0.49 | Y30: 2.49 | Z30: 0.3 | AA30: 2.4 | AB30: 0.4 | AC30: 2.9 | AD30: 1.21 | AE30: 0.74 | AF30: 0.2416666667 | AG30: 2.508333333

Sheet PUSCH 500kmph
A1: Channel model | B1: Propagation condition | C1: Carrier frequency (GHz) | D1: SCS | E1: CBW | F1: Maximum Doppler shift | G1: Tx/Rx | H1: PUSCH mapping type | I1: DMRS | J1: l0 | K1: MCS | L1: 38.104 req | M1: 38.141 req | N1: Samsung | P1: ZTE | R1: CMCC | T1: CATT | V1: Nokia | X1: Huawei | Z1: Ericsson | AB1: Intel | AD1: SPAN | AF1: AVERAGE
N2: Ideal | O2: Impairment | P2: Ideal | Q2: Impairment | R2: Ideal | S2: Impairment | T2: Ideal | U2: Impairment | V2: Ideal | W2: Impairment | X2: Ideal | Y2: Impairment | Z2: Ideal | AA2: Impairment | AB2: Ideal | AC2: Impairment | AD2: Ideal | AE2: Impairment | AF2: Ideal | AG2: Impairment
A3: AWGN | B3: Tunnel | C3: 1.8 | D3: 15KHz | E3: 10MHz | F3: 1740Hz | G3: 1T1R | H3: Type A | I3: 1+1+1 | J3: 2 or 3 | K3: 2 | L3: =DerivingPerfReq(N3:AC3) -> -0.7 | M3: =IF(L3>-100,L3+0.3,L3) -> -0.4 | N3: -2.69 | O3: -0.69 | T3: -3.46 | U3: -0.96 | V3: -3.05 | W3: -0.55 | X3: -3.51 | Y3: =X3+2 -> -1.51 | Z3: -3 | AA3: -0.8 | AB3: -2.4 | AC3: 0.1 | AD3: =MAX(N3,P3,R3,T3,V3,X3,Z3,AB3)-MIN(N3,P3,R3,T3,V3,X3,Z3,AB3) -> 1.11 | AE3: =MAX(O3,Q3,S3,U3,W3,Y3,AA3,AC3)-MIN(O3,Q3,S3,U3,W3,Y3,AA3,AC3) -> 1.61 | AF3: =AVERAGE(N3,P3,R3,T3,V3,X3,Z3,AB3) -> -3.018333333 | AG3: =AVERAGE(O3,Q3,S3,U3,W3,Y3,AA3,AC3) -> -0.735
D4: 15KHz | E4: 10MHz | F4: 1740Hz | G4: 1T2R | H4: Type A | I4: 1+1+1 | J4: 2 or 3 | K4: 2 | L4: =DerivingPerfReq(N4:AC4) -> -3.6 | M4: -3.3 | N4: -5.69 | O4: -3.69 | P4: -5.59 | Q4: =P4+2.5 -> -3.09 | T4: -6.2 | U4: -3.7 | V4: -5.8 | W4: -3.3 | X4: -6.6 | Y4: =X4+2 -> -4.6 | Z4: -6 | AA4: -3.9 | AB4: -5.2 | AC4: -2.7 | AD4: =MAX(N4,P4,R4,T4,V4,X4,Z4,AB4)-MIN(N4,P4,R4,T4,V4,X4,Z4,AB4) -> 1.4 | AE4: =MAX(O4,Q4,S4,U4,W4,Y4,AA4,AC4)-MIN(O4,Q4,S4,U4,W4,Y4,AA4,AC4) -> 1.9 | AF4: =AVERAGE(N4,P4,R4,T4,V4,X4,Z4,AB4) -> -5.868571429 | AG4: =AVERAGE(O4,Q4,S4,U4,W4,Y4,AA4,AC4) -> -3.568571429
D5: 15KHz | E5: 10MHz | F5: 1740Hz | G5: 1T2R | H5: Type A | I5: 1+1+1 | J5: 2 or 3 | K5: 16 | L5: 9.2 | M5: 9.5 | N5: 7.62 | O5: 9.62 | P5: 6.49 | Q5: =P5+2.5 -> 8.99 | T5: 5.7 | U5: 8.2 | V5: 6.46 | W5: 8.96 | X5: 5.41 | Y5: 7.41 | Z5: 7.5 | AA5: 10 | AB5: 8.6 | AC5: 11.1 | AD5: 3.19 | AE5: 3.69 | AF5: 6.825714286 | AG5: 9.182857143
C6: 3.6 | D6: 30KHz | E6: 40MHz | F6: 3334Hz | G6: 1T1R | H6: Type A | I6: 1+1+1 | J6: 2 or 3 | K6: 2 | L6: -0.7 | M6: -0.4 | N6: -2.67 | O6: -0.67 | T6: -3.37 | U6: -0.87 | V6: -3.17 | W6: -0.67 | X6: -3.5 | Y6: -1.5 | Z6: -3 | AA6: -0.8 | AB6: -2.3 | AC6: 0.2 | AD6: 1.2 | AE6: 1.7 | AF6: -3.001666667 | AG6: -0.7183333333
C7: 3.6 | E7: 40MHz | F7: 3334Hz | G7: 1T2R | H7: Type A | I7: 1+1+1 | J7: 2 or 3 | K7: 2 | L7: -3.6 | M7: -3.3 | N7: -5.67 | O7: -3.67 | T7: -6.11 | U7: -3.61 | V7: -5.91 | W7: -3.41 | X7: -6.59 | Y7: -4.59 | Z7: -6 | AA7: -3.5 | AB7: -5.1 | AC7: -2.6 | AD7: 1.49 | AE7: 1.99 | AF7: -5.896666667 | AG7: -3.563333333
C8: 3.6 | E8: 40MHz | F8: 3334Hz | G8: 1T2R | H8: Type A | I8: 1+1+1 | J8: 2 or 3 | K8: 16 | L8: 8 | M8: 8.3 | N8: 7.48 | O8: 9.48 | T8: 5.83 | U8: 8.33 | V8: 5.81 | W8: 8.31 | X8: 5.41 | Y8: 7.41 | Z8: 7.5 | AA8: 9.8 | AB8: 8.3 | AC8: 10.8 | AD8: 2.89 | AE8: 3.39 | AF8: 6.721666667 | AG8: 9.021666667
B9: Open space | C9: 1.8 | D9: 15KHz | E9: 10MHz | F9: 1740Hz | G9: 1T2R | H9: Type A | I9: 1+1+1 | J9: 2 or 3 | K9: 2 | L9: -3.9 | M9: -3.6 | N9: -5.85 | O9: -3.85 | P9: -5.64 | Q9: =P9+2.5 -> -3.14 | R9: -7.16 | S9: -5.16 | T9: -6.21 | U9: -3.71 | V9: -5.97 | W9: -3.47 | X9: -6.6 | Y9: -4.6 | Z9: -6.1 | AA9: -4.1 | AB9: -5.5 | AC9: -3 | AD9: 1.66 | AE9: 2.16 | AF9: -6.12875 | AG9: -3.87875
C10: 1.8 | D10: 15KHz | E10: 10MHz | F10: 1740Hz | G10: 1T2R | H10: Type A | I10: 1+1+1 | J10: 2 or 3 | K10: 16 | L10: 8.5 | M10: 8.8 | N10: 7.22 | O10: 9.22 | P10: 6.66 | Q10: =P10+2.5 -> 9.16 | R10: 6.25 | S10: 8.25 | T10: 5.68 | U10: 8.18 | V10: 5.75 | W10: 8.25 | X10: 5.4 | Y10: 7.4 | Z10: 6.5 | AA10: 8.6 | AB10: 6.8 | AC10: 9.3 | AD10: 1.82 | AE10: 1.9 | AF10: 6.2825 | AG10: 8.545
C11: 1.8 | D11: 15KHz | E11: 10MHz | F11: 1740Hz | G11: 1T8R | H11: Type A | I11: 1+1+1 | J11: 2 or 3 | K11: 2 | L11: -9.4 | M11: =IF(L11>-100,L11+0.3,L11) -> -9.1 | N11: -11.26 | O11: -9.26 | P11: -10.97 | Q11: -8.47 | R11: -12.96 | S11: -10.96 | T11: -11.2 | U11: -8.7 | V11: -11.26 | W11: -8.76 | X11: -12.57 | Y11: -10.57 | Z11: -12 | AA11: -10 | AB11: -11.3 | AC11: -8.8 | AD11: 1.99 | AE11: 2.49 | AF11: -11.69 | AG11: -9.44
C12: 1.8 | D12: 15KHz | E12: 10MHz | F12: 1740Hz | G12: 1T8R | H12: Type A | I12: 1+1+1 | J12: 2 or 3 | K12: 16 | L12: =DerivingPerfReq(N12:AC12) -> 2.7 | M12: =IF(L12>-100,L12+0.3,L12) -> 3 | N12: 1.36 | O12: 3.36 | P12: 0.44 | Q12: 2.94 | R12: 0.2 | S12: 2.2 | T12: -0.22 | U12: 2.28 | V12: -0.22 | W12: 2.28 | X12: 0.4 | Y12: 2.4 | Z12: 0.5 | AA12: 2.5 | AB12: 0.8 | AC12: 3.3 | AD12: 1.58 | AE12: 1.16 | AF12: 0.4075 | AG12: 2.6575
C13: 3.6 | D13: 30KHz | E13: 40MHz | F13: 3334Hz | G13: 1T2R | H13: Type A | I13: 1+1+1 | J13: 2 or 3 | K13: 2 | L13: -3.9 | M13: -3.6 | N13: -5.81 | O13: -3.81 | P13: -5.95 | Q13: -3.45 | R13: -7.14 | S13: -5.14 | T13: -6.12 | U13: -3.62 | V13: -5.98 | W13: -3.48 | X13: -6.67 | Y13: -4.67 | Z13: -6 | AA13: -3.8 | AB13: -5.4 | AC13: -2.9 | AD13: 1.74 | AE13: 2.24 | AF13: -6.13375 | AG13: -3.85875
C14: 3.6 | D14: 30KHz | E14: 40MHz | F14: 3334Hz | G14: 1T2R | H14: Type A | I14: 1+1+1 | J14: 2 or 3 | K14: 16 | L14: 8.7 | M14: 9 | N14: 7.3 | O14: 9.3 | P14: 7.22 | Q14: 9.72 | R14: 6.06 | S14: 8.06 | T14: 5.79 | U14: 8.29 | V14: 5.74 | W14: 8.24 | X14: 5.4 | Y14: 7.4 | Z14: 6.5 | AA14: 8.9 | AB14: 6.8 | AC14: 9.3 | AD14: 1.9 | AE14: 2.32 | AF14: 6.35125 | AG14: 8.65125
C15: 3.6 | D15: 30KHz | E15: 40MHz | F15: 3334Hz | G15: 1T8R | H15: Type A | I15: 1+1+1 | J15: 2 or 3 | K15: 2 | L15: -9.2 | M15: -8.9 | N15: -11.25 | O15: -9.25 | P15: -10.95 | Q15: -8.45 | R15: -13.12 | S15: -11.12 | T15: -11.04 | U15: -8.54 | V15: -11.26 | W15: -8.76 | X15: -12.6 | Y15: -10.6 | Z15: -12 | AA15: -9.9 | AB15: -11.2 | AC15: -8.7 | AD15: 2.17 | AE15: 2.67 | AF15: -11.6775 | AG15: -9.415
C16: 3.6 | D16: 30KHz | E16: 40MHz | F16: 3334Hz | G16: 1T8R | H16: Type A | I16: 1+1+1 | J16: 2 or 3 | K16: 16 | L16: 2.8 | M16: 3.1 | N16: 1.43 | O16: 3.43 | P16: 1.43 | Q16: 3.93 | R16: 0.1 | S16: 2.1 | T16: -0.1 | U16: 2.4 | V16: -0.23 | W16: 2.27 | X16: 0.4 | Y16: 2.4 | Z16: 0.5 | AA16: 2.8 | AB16: 0.8 | AC16: 3.3 | AD16: 1.66 | AE16: =MAX(O16,Q16,S16,U16,W16,Y16,AA16,AC16)-MIN(O16,Q16,S16,U16,W16,Y16,AA16,AC16) -> 1.83 | AF16: =AVERAGE(N16,P16,R16,T16,V16,X16,Z16,AB16) -> 0.54125 | AG16: 2.82875
A17: AWGN | B17: Tunnel | C17: 1.8 | D17: 15KHz | E17: 5MHz | F17: 1740Hz | G17: 1T1R | H17: Type A | I17: 1+1+1 | J17: 2 or 3 | K17: 2 | L17: =DerivingPerfReq(N17:AC17) -> -0.6 | M17: =IF(L17>-100,L17+0.3,L17) -> -0.3 | N17: -2.68 | O17: -0.68 | P17: -2.91 | Q17: -0.41 | T17: -3.45 | U17: -0.95 | V17: -2.76 | W17: -0.26 | X17: -3.51 | Y17: -1.51 | Z17: -3 | AA17: -0.8 | AB17: -2.3 | AC17: 0.2 | AD17: =MAX(N17,P17,R17,T17,V17,X17,Z17,AB17)-MIN(N17,P17,R17,T17,V17,X17,Z17,AB17) -> 1.21 | AE17: =MAX(O17,Q17,S17,U17,W17,Y17,AA17,AC17)-MIN(O17,Q17,S17,U17,W17,Y17,AA17,AC17) -> 1.71 | AF17: =AVERAGE(N17,P17,R17,T17,V17,X17,Z17,AB17) -> -2.944285714 | AG17: =AVERAGE(O17,Q17,S17,U17,W17,Y17,AA17,AC17) -> -0.63
D18: 15KHz | F18: 1740Hz | G18: 1T2R | H18: Type A | I18: 1+1+1 | J18: 2 or 3 | K18: 2 | L18: =DerivingPerfReq(N18:AC18) -> -3.5 | M18: -3.2 | N18: -5.68 | O18: -3.68 | P18: -5.65 | Q18: =P18+2.5 -> -3.15 | T18: -6.2 | U18: -3.7 | V18: -5.57 | W18: -3.07 | X18: -6.51 | Y18: -4.51 | Z18: -6 | AA18: -3.9 | AB18: -5.2 | AC18: -2.7 | AD18: =MAX(N18,P18,R18,T18,V18,X18,Z18,AB18)-MIN(N18,P18,R18,T18,V18,X18,Z18,AB18) -> 1.31 | AE18: =MAX(O18,Q18,S18,U18,W18,Y18,AA18,AC18)-MIN(O18,Q18,S18,U18,W18,Y18,AA18,AC18) -> 1.81 | AF18: =AVERAGE(N18,P18,R18,T18,V18,X18,Z18,AB18) -> -5.83 | AG18: =AVERAGE(O18,Q18,S18,U18,W18,Y18,AA18,AC18) -> -3.53
D19: 15KHz | F19: 1740Hz | G19: 1T2R | H19: Type A | I19: 1+1+1 | J19: 2 or 3 | K19: 16 | L19: 8.8 | M19: 9.1 | N19: 8.53 | O19: 10.53 | P19: 6.99 | Q19: =P19+2.5 -> 9.49 | T19: 5.82 | U19: 8.32 | V19: 9.52 | W19: 12.02 | X19: 5.5 | Y19: 7.5 | Z19: 7.1 | AA19: 9.7 | AD19: 4.02 | AE19: 4.52 | AF19: 7.243333333 | AG19: 9.593333333
C20: 3.6 | D20: 30KHz | E20: 10MHz | F20: 3334Hz | G20: 1T1R | H20: Type A | I20: 1+1+1 | J20: 2 or 3 | K20: 2 | L20: -0.7 | M20: -0.4 | N20: -2.77 | O20: -0.77 | T20: -3.47 | U20: -0.97 | V20: -3.11 | W20: -0.61 | X20: -3.51 | Y20: -1.51 | Z20: -3 | AA20: -0.8 | AB20: -2.3 | AC20: 0.2 | AD20: 1.21 | AE20: 1.71 | AF20: -3.026666667 | AG20: -0.7433333333
C21: 3.6 | F21: 3334Hz | G21: 1T2R | H21: Type A | I21: 1+1+1 | J21: 2 or 3 | K21: 2 | L21: -3.6 | M21: -3.3 | N21: -5.76 | O21: -3.76 | T21: -6.22 | U21: -3.72 | V21: -5.88 | W21: -3.38 | X21: -6.52 | Y21: -4.52 | Z21: -6 | AA21: -3.5 | AB21: -5.3 | AC21: -2.8 | AD21: 1.22 | AE21: 1.72 | AF21: -5.946666667 | AG21: -3.613333333
C22: 3.6 | F22: 3334Hz | G22: 1T2R | H22: Type A | I22: 1+1+1 | J22: 2 or 3 | K22: 16 | L22: 8.4 | M22: 8.7 | N22: 8.01 | O22: 10.01 | T22: 5.6 | U22: 8.1 | V22: 5.76 | W22: 8.26 | X22: 5.5 | Y22: 7.5 | Z22: 7.1 | AA22: 9.7 | AD22: 2.51 | AE22: 2.51 | AF22: 6.394 | AG22: 8.714
B23: Open space | C23: 1.8 | D23: 15KHz | E23: 5MHz | F23: 1740Hz | G23: 1T2R | H23: Type A | I23: 1+1+1 | J23: 2 or 3 | K23: 2 | L23: -3.6 | M23: -3.3 | N23: -5.83 | O23: -3.83 | P23: -5.7 | Q23: =P23+2.5 -> -3.2 | T23: -6.2 | U23: -3.7 | V23: -5.87 | W23: -3.37 | X23: -6.51 | Y23: -4.51 | Z23: -6.1 | AA23: -4.1 | AB23: -5.3 | AC23: -2.8 | AD23: 1.21 | AE23: 1.71 | AF23: -5.93 | AG23: -3.644285714
C24: 1.8 | D24: 15KHz | F24: 1740Hz | G24: 1T2R | H24: Type A | I24: 1+1+1 | J24: 2 or 3 | K24: 16 | L24: 8.7 | M24: 9 | N24: 7.33 | O24: 9.33 | P24: 6.64 | Q24: =P24+2.5 -> 9.14 | T24: 5.78 | U24: 8.28 | V24: 5.82 | W24: 8.32 | X24: 5.49 | Y24: 7.49 | Z24: 6.5 | AA24: 8.6 | AB24: 7.1 | AC24: 9.6 | AD24: 1.84 | AE24: 2.11 | AF24: 6.38 | AG24: 8.68
C25: 1.8 | D25: 15KHz | F25: 1740Hz | G25: 1T8R | H25: Type A | I25: 1+1+1 | J25: 2 or 3 | K25: 2 | L25: -9.1 | M25: -8.8 | N25: -11.11 | O25: -9.11 | P25: -10.95 | Q25: =P25+2.5 -> -8.45 | T25: -11.26 | U25: -8.76 | V25: -11.21 | W25: -8.71 | X25: -12.44 | Y25: -10.44 | Z25: -12 | AA25: -10 | AB25: -10.6 | AC25: -8.1 | AD25: 1.84 | AE25: 2.34 | AF25: -11.36714286 | AG25: -9.081428571
C26: 1.8 | D26: 15KHz | F26: 1740Hz | G26: 1T8R | H26: Type A | I26: 1+1+1 | J26: 2 or 3 | K26: 16 | L26: 3 | M26: 3.3 | N26: 1.44 | O26: 3.44 | P26: 0.95 | Q26: 3.45 | T26: -0.12 | U26: 2.38 | V26: -0.05 | W26: 2.45 | X26: 0.49 | Y26: 2.49 | Z26: 0.5 | AA26: 2.5 | AB26: 1.8 | AC26: 4.3 | AD26: 1.92 | AE26: 1.92 | AF26: 0.7157142857 | AG26: 3.001428571
C27: 3.6 | D27: 30KHz | E27: 10MHz | F27: 3334Hz | G27: 1T2R | H27: Type A | I27: 1+1+1 | J27: 2 or 3 | K27: 2 | L27: -3.7 | M27: -3.4 | N27: -5.87 | O27: -3.87 | T27: -6.22 | U27: -3.72 | V27: -5.93 | W27: -3.43 | X27: -6.54 | Y27: -4.54 | Z27: -6 | AA27: -3.8 | AB27: -5.4 | AC27: -2.9 | AD27: 1.14 | AE27: 1.64 | AF27: -5.993333333 | AG27: -3.71
C28: 3.6 | D28: 30KHz | F28: 3334Hz | G28: 1T2R | H28: Type A | I28: 1+1+1 | J28: 2 or 3 | K28: 16 | L28: 8.5 | M28: 8.8 | N28: 7.01 | O28: 9.01 | T28: 5.57 | U28: 8.07 | V28: 5.7 | W28: 8.2 | X28: 5.49 | Y28: 7.49 | Z28: 6.5 | AA28: 8.9 | AB28: 6.7 | AC28: 9.2 | AD28: 1.52 | AE28: 1.71 | AF28: 6.161666667 | AG28: 8.478333333
C29: 3.6 | D29: 30KHz | F29: 3334Hz | G29: 1T8R | H29: Type A | I29: 1+1+1 | J29: 2 or 3 | K29: 2 | L29: -9.2 | M29: -8.9 | N29: -11.14 | O29: -9.14 | T29: -11.27 | U29: -8.77 | V29: -11.24 | W29: -8.74 | X29: -12.42 | Y29: -10.42 | Z29: -12 | AA29: -9.9 | AB29: -10.8 | AC29: -8.3 | AD29: 1.62 | AE29: 2.12 | AF29: -11.47833333 | AG29: -9.211666667
C30: 3.6 | D30: 30KHz | F30: 3334Hz | G30: 1T8R | H30: Type A | I30: 1+1+1 | J30: 2 or 3 | K30: 16 | L30: 2.7 | M30: 3 | N30: 1.18 | O30: 3.18 | T30: -0.33 | U30: 2.17 | V30: -0.25 | W30: 2.25 | X30: 0.49 | Y30: 2.49 | Z30: 0.5 | AA30: 2.8 | AB30: 1.1 | AC30: 3.6 | AD30: 1.51 | AE30: =MAX(O30,Q30,S30,U30,W30,Y30,AA30,AC30)-MIN(O30,Q30,S30,U30,W30,Y30,AA30,AC30) -> 1.43 | AF30: =AVERAGE(N30,P30,R30,T30,V30,X30,Z30,AB30) -> 0.4483333333 | AG30: 2.748333333

Sheet PUSCH UL TA scenario X
A1: Scenario | B1: PUSCH transmission | C1: SRS transmission | D1: CBW | E1: SCS | F1: Waveform | G1: Tx/Rx | H1: DMRS | I1: l0 | J1: MCS | K1: A | L1: Δω | M1: PUSCH mapping type | N1: 38.104 req | O1: 38.141 req | P1: Samsung | R1: ZTE | T1: CMCC | V1: CATT | X1: Nokia | Z1: Huawei | AB1: Ericsson | AD1: Intel | AF1: SPAN | AH1: AVERAGE
P2: Ideal | Q2: Impairment | R2: Ideal | S2: Impairment | T2: Ideal | U2: Impairment | V2: Ideal | W2: Impairment | X2: Ideal | Y2: Impairment | Z2: Ideal | AA2: Impairment | AB2: Ideal | AC2: Impairment | AD2: Ideal | AE2: Impairment | AF2: Ideal | AG2: Impairment | AH2: Ideal | AI2: Impairment
A3: Scenario X | B3: FDD or TDD | C3: Enabled or Disabled | D3: 10MHz | E3: 15KHz | F3: CP-OFDM | G3: 1T2R | H3: 1+1+1 | I3: 2 | J3: 16 | K3: 10us | L3: 0.04s-1 | M3: Type A | N3: =DerivingPerfReq(P3:AE3) -> 11.1 | O3: =IF(N3>-100,N3+0.6,N3) -> 11.7 | P3: 9.38 | Q3: 11.38 | V3: 8.07 | W3: 10.57 | X3: 7.71 | Y3: 10.21 | AB3: 9.3 | AC3: 11.8 | AD3: 8.9 | AE3: 11.4 | AF3: =MAX(P3,R3,T3,V3,X3,Z3,AB3,AD3)-MIN(P3,R3,T3,V3,X3,Z3,AB3,AD3) -> 1.67 | AG3: =MAX(Q3,S3,U3,W3,Y3,AA3,AC3,AE3)-MIN(Q3,S3,U3,W3,Y3,AA3,AC3,AE3) -> 1.59 | AH3: =AVERAGE(Q4,R3,T3,V3,X3,Z3,AB3,AD3) -> 9.118 | AI3: =AVERAGE(Q3,S3,U3,W3,Y3,AA3,AC3,AE3) -> 11.072
D4: 10MHz | E4: 15KHz | F4: CP-OFDM | G4: 1T2R | H4: 1+1+1 | I4: 0 | J4: 16 | K4: 10us | L4: 0.04s-1 | M4: Type B | N4: 11.6 | O4: =IF(N4>-100,N4+0.6,N4) -> 12.2 | P4: 9.61 | Q4: 11.61 | V4: 8.06 | W4: 10.56 | X4: 7.72 | Y4: 10.22 | AB4: 9.4 | AC4: 11.9 | AD4: 9.9 | AE4: 12.4 | AF4: =MAX(P4,R4,T4,V4,X4,Z4,AB4,AD4)-MIN(P4,R4,T4,V4,X4,Z4,AB4,AD4) -> 2.18 | AG4: 2.18 | AH4: =AVERAGE(Q5,R4,T4,V4,X4,Z4,AB4,AD4) -> 9.2 | AI4: 11.338
C5: Enabled or Disabled | D5: 40MHz | E5: 30KHz | F5: CP-OFDM | G5: 1T2R | H5: 1+1+1 | I5: 2 | J5: 16 | K5: 5us | L5: 0.08s-1 | M5: Type A | N5: 12.1 | O5: 12.7 | P5: 8.92 | Q5: 10.92 | V5: 10.7 | W5: 13.2 | X5: 7.68 | Y5: 10.18 | AB5: 9.9 | AC5: 12.2 | AD5: 9.6 | AE5: 12.1 | AF5: 3.02 | AG5: 3.02 | AH5: 9.618 | AI5: 11.72
D6: 40MHz | E6: 30KHz | F6: CP-OFDM | G6: 1T2R | H6: 1+1+1 | I6: 0 | J6: 16 | K6: 5us | L6: 0.08s-1 | M6: Type B | N6: 12.6 | O6: 13.2 | P6: 8.21 | Q6: 10.21 | V6: 10.52 | W6: 13.02 | X6: 7.68 | Y6: 10.18 | AB6: 9.8 | AC6: 12.3 | AD6: 10 | AE6: 12.5 | AF6: 2.84 | AG6: 2.84 | AH6: 9.704 | AI6: 11.642
A7: Scenario X | B7: FDD or TDD | C7: Enabled or Disabled | D7: 5MHz | E7: 15KHz | F7: CP-OFDM | G7: 1T2R | H7: 1+1+1 | I7: 2 | J7: 16 | K7: 10us | L7: 0.04s-1 | M7: Type A | N7: =DerivingPerfReq(P7:AE7) -> 10.6 | O7: 11.2 | P7: 8.52 | Q7: 10.52 | V7: 8.61 | W7: 11.11 | X7: 7.31 | Y7: 9.81 | Z7: 8.26 | AA7: 10.76 | AB7: 8.3 | AC7: 10.5 | AD7: 8.3 | AE7: 10.8 | AF7: =MAX(P7,R7,T7,V7,X7,Z7,AB7,AD7)-MIN(P7,R7,T7,V7,X7,Z7,AB7,AD7) -> 1.3 | AG7: 1.3 | AH7: 8.568333333 | AI7: 10.58333333
D8: 5MHz | E8: 15KHz | F8: CP-OFDM | G8: 1T2R | H8: 1+1+1 | I8: 0 | J8: 16 | K8: 10us | L8: 0.04s-1 | M8: Type B | N8: 10.6 | O8: 11.2 | P8: 8.63 | Q8: 10.63 | V8: 8.63 | W8: 11.13 | X8: 7.32 | Y8: 9.82 | Z8: 8.18 | AA8: 10.68 | AB8: 8.4 | AC8: 10.8 | AD8: 8.3 | AE8: 10.8 | AF8: =MAX(P8,R8,T8,V8,X8,Z8,AB8,AD8)-MIN(P8,R8,T8,V8,X8,Z8,AB8,AD8) -> 1.31 | AG8: 1.31 | AH8: 8.5 | AI8: 10.64333333
C9: Enabled or Disabled | D9: 10MHz | E9: 30KHz | F9: CP-OFDM | G9: 1T2R | H9: 1+1+1 | I9: 2 | J9: 16 | K9: 5us | L9: 0.08s-1 | M9: Type A | N9: 10.8 | O9: 11.4 | P9: 8.17 | Q9: 10.17 | V9: 10.42 | W9: 12.92 | X9: 7.42 | Y9: 9.92 | Z9: 9.09 | AA9: 11.59 | AB9: 8.8 | AC9: 11.3 | AD9: 8.7 | AE9: 11.2 | AF9: 3 | AG9: 3 | AH9: 9.096666667 | AI9: 11.18333333
D10: 10MHz | E10: 30KHz | F10: CP-OFDM | G10: 1T2R | H10: 1+1+1 | I10: 0 | J10: 16 | K10: 5us | L10: 0.08s-1 | M10: Type B | N10: 10.7 | O10: 11.3 | P10: 8.15 | Q10: 10.15 | V10: 10.29 | W10: 12.79 | X10: 7.42 | Y10: 9.92 | Z10: 8.96 | AA10: 11.46 | AB10: 8.7 | AC10: 10.8 | AD10: 8.8 | AE10: 11.3 | AF10: 2.87 | AG10: 2.87 | AH10: 8.834 | AI10: 11.07

Sheet PUSCH UL TA
A1: Scenario | B1: PUSCH transmission | C1: SRS transmission | D1: CBW | E1: SCS | F1: Waveform | G1: Tx/Rx | H1: DMRS | I1: l0 | J1: MCS | K1: A | L1: Δω | M1: PUSCH mapping type | N1: 38.104 req | O1: 38.141 req | P1: Samsung | R1: ZTE | T1: CMCC | V1: CATT | X1: Nokia | Z1: Huawei | AB1: Ericsson | AD1: Intel | AF1: SPAN | AH1: AVERAGE
P2: Ideal | Q2: Impairment | R2: Ideal | S2: Impairment | T2: Ideal | U2: Impairment | V2: Ideal | W2: Impairment | X2: Ideal | Y2: Impairment | Z2: Ideal | AA2: Impairment | AB2: Ideal | AC2: Impairment | AD2: Ideal | AE2: Impairment | AF2: Ideal | AG2: Impairment | AH2: Ideal | AI2: Impairment
A3: Scenario Y | B3: FDD or TDD | C3: Enabled or Disabled | D3: 10MHz | E3: 15KHz | F3: CP-OFDM | G3: 1T2R | H3: 1+1+1 | I3: 2 | J3: 16 | K3: 10us | L3: 0.13s-1 | M3: Type A | N3: =DerivingPerfReq(P3:AE3) -> 8.5 | O3: =IF(N3>-100,N3+0.3,N3) -> 8.8 | P3: 6.79 | Q3: 8.79 | R3: 6.75 | S3: =R3+2.5 -> 9.25 | V3: 5.8 | W3: 8.3 | X3: 5.74 | Y3: 8.24 | Z3: 5.9 | AA3: =Z3+2 -> 7.9 | AB3: 6 | AC3: 8.3 | AF3: =MAX(P3,R3,T3,V3,X3,Z3,AB3,AD3)-MIN(P3,R3,T3,V3,X3,Z3,AB3,AD3) -> 1.05 | AG3: =MAX(Q3,S3,U3,W3,Y3,AA3,AC3,AE3)-MIN(Q3,S3,U3,W3,Y3,AA3,AC3,AE3) -> 1.35 | AH3: =AVERAGE(Q4,R3,T3,V3,X3,Z3,AB3,AD3) -> 6.496666667 | AI3: =AVERAGE(Q3,S3,U3,W3,Y3,AA3,AC3,AE3) -> 8.463333333
D4: 10MHz | E4: 15KHz | F4: CP-OFDM | G4: 1T2R | H4: 1+1+1 | I4: 0 | J4: 16 | K4: 10us | L4: 0.13s-1 | M4: Type B | N4: 8.5 | O4: 8.8 | P4: 6.79 | Q4: 8.79 | R4: 6.83 | S4: =R4+2.5 -> 9.33 | V4: 5.78 | W4: 8.28 | X4: 5.74 | Y4: 8.24 | Z4: 6.1 | AA4: =Z4+2 -> 8.1 | AB4: 6 | AC4: 8.2 | AF4: =MAX(P4,R4,T4,V4,X4,Z4,AB4,AD4)-MIN(P4,R4,T4,V4,X4,Z4,AB4,AD4) -> 1.09 | AG4: 1.23 | AH4: =AVERAGE(Q5,R4,T4,V4,X4,Z4,AB4,AD4) -> 6.481666667 | AI4: 8.49
C5: Enabled or Disabled | D5: 40MHz | E5: 30KHz | F5: CP-OFDM | G5: 1T2R | H5: 1+1+1 | I5: 2 | J5: 16 | K5: 5us | L5: 0.26s-1 | M5: Type A | N5: 8.4 | O5: 8.7 | P5: 6.44 | Q5: 8.44 | R5: 6.74 | S5: 9.24 | V5: 5.86 | W5: 8.36 | X5: 5.7 | Y5: 8.2 | Z5: 6.03 | AA5: 8.03 | AB5: 6 | AC5: 8.3 | AF5: 1.04 | AG5: 1.21 | AH5: 6.458333333 | AI5: 8.428333333
D6: 40MHz | E6: 30KHz | F6: CP-OFDM | G6: 1T2R | H6: 1+1+1 | I6: 0 | J6: 16 | K6: 5us | L6: 0.26s-1 | M6: Type B | N6: 8.4 | O6: 8.7 | P6: 6.42 | Q6: 8.42 | R6: 6.76 | S6: 9.26 | V6: 5.84 | W6: 8.34 | X6: 5.69 | Y6: 8.19 | Z6: 6.25 | AA6: 8.25 | AB6: 6 | AC6: 8.1 | AF6: 1.07 | AG6: 1.16 | AH6: 6.513333333 | AI6: 8.426666667
A7: Scenario Z | B7: FDD or TDD | C7: Enabled or Disabled | D7: 10MHz | E7: 15KHz | F7: CP-OFDM | G7: 1T2R | H7: 1+1+1 | I7: 2 | J7: 16 | K7: 10us | L7: 0.18s-1 | M7: Type A | N7: =DerivingPerfReq(P7:AE7) -> 8.4 | O7: =IF(N7>-100,N7+0.3,N7) -> 8.7 | P7: 6.54 | Q7: 8.54 | R7: 6.71 | S7: 9.21 | V7: 5.81 | W7: 8.31 | X7: 5.7 | Y7: 8.2 | Z7: 6.01 | AA7: 8.01 | AB7: 6 | AC7: 8.2 | AF7: 1.01 | AG7: =MAX(Q7,S7,U7,W7,Y7,AA7,AC7,AE7)-MIN(Q7,S7,U7,W7,Y7,AA7,AC7,AE7) -> 1.2 | AH7: 6.46 | AI7: =AVERAGE(Q7,S7,U7,W7,Y7,AA7,AC7,AE7) -> 8.411666667
D8: 10MHz | E8: 15KHz | F8: CP-OFDM | G8: 1T2R | H8: 1+1+1 | I8: 0 | J8: 16 | K8: 10us | L8: 0.18s-1 | M8: Type B | N8: =DerivingPerfReq(P8:AE8) -> 8.5 | O8: =IF(N8>-100,N8+0.3,N8) -> 8.8 | P8: 6.53 | Q8: 8.53 | R8: 6.82 | S8: 9.32 | V8: 5.78 | W8: 8.28 | X8: 5.69 | Y8: 8.19 | Z8: 6.22 | AA8: 8.22 | AB8: 6 | AC8: 8.4 | AF8: 1.13 | AG8: 1.13 | AH8: 6.506666667 | AI8: 8.49
C9: Enabled or Disabled | D9: 40MHz | E9: 30KHz | F9: CP-OFDM | G9: 1T2R | H9: 1+1+1 | I9: 2 | J9: 16 | K9: 5us | L9: 0.36s-1 | M9: Type A | N9: 8.5 | O9: 8.8 | P9: 6.53 | Q9: 8.53 | R9: 6.72 | S9: =R9+2.5 -> 9.22 | V9: 5.86 | W9: 8.36 | X9: 5.67 | Y9: 8.17 | Z9: 6.04 | AA9: 8.04 | AB9: 6 | AC9: 8.5 | AF9: 1.05 | AG9: 1.18 | AH9: 6.47 | AI9: 8.47
D10: 40MHz | E10: 30KHz | F10: CP-OFDM | G10: 1T2R | H10: 1+1+1 | I10: 0 | J10: 16 | K10: 5us | L10: 0.36s-1 | M10: Type B | N10: 8.5 | O10: 8.8 | P10: 6.53 | Q10: 8.53 | R10: 6.73 | S10: =R10+2.5 -> 9.23 | V10: 5.84 | W10: 8.34 | X10: 5.67 | Y10: 8.17 | Z10: 6.26 | AA10: 8.26 | AB10: 6 | AC10: 8.5 | AF10: 1.06 | AG10: 1.06 | AH10: 6.473333333 | AI10: 8.505
A11: Scenario Y | B11: FDD or TDD | C11: Enabled or Disabled | D11: 5MHz | E11: 15KHz | F11: CP-OFDM | G11: 1T2R | H11: 1+1+1 | I11: 2 | J11: 16 | K11: 10us | L11: 0.13s-1 | M11: Type A | N11: 8.2 | O11: 8.5 | P11: 6.34 | Q11: 8.34 | V11: 6.2 | W11: 8.7 | X11: 5.56 | Y11: 8.06 | Z11: 5.57 | AA11: =Z11+2 -> 7.57 | AB11: 6 | AC11: 8.1 | AD11: 6.1 | AE11: 8.6 | AF11: =MAX(P11,R11,T11,V11,X11,Z11,AB11,AD11)-MIN(P11,R11,T11,V11,X11,Z11,AB11,AD11) -> 0.78 | AG11: 1.13 | AH11: 6.291666667 | AI11: 8.228333333
D12: 5MHz | E12: 15KHz | F12: CP-OFDM | G12: 1T2R | H12: 1+1+1 | I12: 0 | J12: 16 | K12: 10us | L12: 0.13s-1 | M12: Type B | N12: 8.3 | O12: 8.6 | P12: 6.32 | Q12: 8.32 | V12: 6.17 | W12: 8.67 | X12: 5.56 | Y12: 8.06 | Z12: 5.87 | AA12: =Z12+2 -> 7.87 | AB12: 6 | AC12: 8.4 | AD12: 6.1 | AE12: 8.6 | AF12: =MAX(P12,R12,T12,V12,X12,Z12,AB12,AD12)-MIN(P12,R12,T12,V12,X12,Z12,AB12,AD12) -> 0.76 | AG12: 0.8 | AH12: 6.336666667 | AI12: 8.32
C13: Enabled or Disabled | D13: 10MHz | E13: 30KHz | F13: CP-OFDM | G13: 1T2R | H13: 1+1+1 | I13: 2 | J13: 16 | K13: 5us | L13: 0.26s-1 | M13: Type A | N13: 8.3 | O13: 8.6 | P13: 6.34 | Q13: 8.32 | V13: 6.2 | W13: 8.7 | X13: 5.56 | Y13: 8.06 | Z13: 5.67 | AA13: 7.67 | AB13: 6 | AC13: 8.2 | AD13: 6.1 | AE13: 8.6 | AF13: 0.78 | AG13: 1.03 | AH13: 6.308333333 | AI13: 8.258333333
D14: 10MHz | E14: 30KHz | F14: CP-OFDM | G14: 1T2R | H14: 1+1+1 | I14: 0 | J14: 16 | K14: 5us | L14: 0.26s-1 | M14: Type B | N14: 8.3 | O14: 8.6 | P14: 6.32 | Q14: 8.32 | V14: 6.18 | W14: 8.68 | X14: 5.56 | Y14: 8.06 | Z14: 5.97 | AA14: 7.97 | AB14: 6 | AC14: 8.1 | AD14: 6.1 | AE14: 8.6 | AF14: 0.76 | AG14: 0.71 | AH14: 6.358333333 | AI14: 8.288333333
A15: Scenario Z | B15: FDD or TDD | C15: Enabled or Disabled | D15: 5MHz | E15: 15KHz | F15: CP-OFDM | G15: 1T2R | H15: 1+1+1 | I15: 2 | J15: 16 | K15: 10us | L15: 0.18s-1 | M15: Type A | N15: =DerivingPerfReq(P15:AE15) -> 8.3 | O15: =IF(N15>-100,N15+0.3,N15) -> 8.6 | P15: 6.34 | Q15: 8.34 | V15: 6.28 | W15: 8.78 | X15: 5.57 | Y15: 8.07 | Z15: 5.57 | AA15: 7.57 | AB15: 6 | AC15: 8.3 | AD15: 6.1 | AE15: 8.6 | AF15: 0.77 | AG15: =MAX(Q15,S15,U15,W15,Y15,AA15,AC15,AE15)-MIN(Q15,S15,U15,W15,Y15,AA15,AC15,AE15) -> 1.21 | AH15: 6.308333333 | AI15: =AVERAGE(Q15,S15,U15,W15,Y15,AA15,AC15,AE15) -> 8.276666667
D16: 5MHz | E16: 15KHz | F16: CP-OFDM | G16: 1T2R | H16: 1+1+1 | I16: 0 | J16: 16 | K16: 10us | L16: 0.18s-1 | M16: Type B | N16: =DerivingPerfReq(P16:AE16) -> 8.3 | O16: 8.6 | P16: 6.33 | Q16: 8.33 | V16: 6.25 | W16: 8.75 | X16: 5.57 | Y16: 8.07 | Z16: 5.87 | AA16: 7.87 | AB16: 6 | AC16: 8.2 | AD16: 6.1 | AE16: 8.6 | AF16: 0.76 | AG16: 0.88 | AH16: 6.355 | AI16: 8.303333333
C17: Enabled or Disabled | D17: 10MHz | E17: 30KHz | F17: CP-OFDM | G17: 1T2R | H17: 1+1+1 | I17: 2 | J17: 16 | K17: 5us | L17: 0.36s-1 | M17: Type A | N17: 8.3 | O17: 8.6 | P17: 6.34 | Q17: 8.34 | V17: 6.27 | W17: 8.77 | X17: 5.57 | Y17: 8.07 | Z17: 5.67 | AA17: 7.67 | AB17: 6 | AC17: 8.2 | AD17: 6.1 | AE17: 8.6 | AF17: 0.77 | AG17: 1.1 | AH17: 6.323333333 | AI17: 8.275
D18: 10MHz | E18: 30KHz | F18: CP-OFDM | G18: 1T2R | H18: 1+1+1 | I18: 0 | J18: 16 | K18: 5us | L18: 0.36s-1 | M18: Type B | N18: 8.4 | O18: 8.7 | P18: 6.33 | Q18: 8.33 | V18: 6.25 | W18: 8.75 | X18: 5.57 | Y18: 8.07 | Z18: 5.97 | AA18: 7.97 | AB18: 6 | AC18: 8.5 | AD18: 6.1 | AE18: 8.6 | AF18: 0.76 | AG18: 0.78 | AH18: 5.978 | AI18: 8.37

Sheet PRACH format0 Type A fading
A1: Format | B1: SCS | C1: Restricted set type | D1: Ncs | E1: Logical sequence index | F1: v | G1: Tx/Rx | H1: Carrier frequency(GHz) | I1: Propagation condition | J1: Frequency offset (Hz) | K1: Timing error tolerance | L1: 38.104 req | M1: 38.141 req | N1: Samsung | P1: ZTE | R1: CMCC | T1: CATT | V1: Nokia | X1: Huawei | Z1: Ericsson | AB1: Intel | AD1: SPAN | AF1: AVERAGE
N2: Ideal | O2: Impairment | P2: Ideal | Q2: Impairment | R2: Ideal | S2: Impairment | T2: Ideal | U2: Impairment | V2: Ideal | W2: Impairment | X2: Ideal | Y2: Impairment | Z2: Ideal | AA2: Impairment | AB2: Ideal | AC2: Impairment | AD2: Ideal | AE2: Impairment | AF2: Ideal | AG2: Impairment
A3: Format 0 | B3: 1.25kHz | C3: Type A | D3: 15 | E3: 384 | F3: 0 | G3: 1T2R | H3: 2.1 | I3: TDLC300-100 | J3: 0 | K3: 2.55us | L3: =DerivingPerfReq(N3:AC3) -> -6.4 | M3: =IF(L3>-100,L3+0.6,L3) -> -5.8 | N3: -8.38 | O3: -6.38 | T3: -8.8 | U3: -6.8 | V3: -7.87 | W3: -5.37 | X3: -9.3 | Y3: -7.3 | Z3: -8.9 | AA3: -6.4 | AB3: -8.8 | AC3: -6.3 | AD3: =MAX(N3,P3,R3,T3,V3,X3,Z3,AB3)-MIN(N3,P3,R3,T3,V3,X3,Z3,AB3) -> 1.43 | AE3: 1.93 | AF3: =AVERAGE(N3,P3,R3,T3,V3,X3,Z3,AB3) -> -8.675 | AG3: -6.425
A4: Format 0 | B4: 1.25kHz | C4: Type A | D4: 15 | E4: 384 | F4: 0 | G4: 1T4R | H4: 2.1 | I4: TDLC300-100 | J4: 0 | K4: 2.55us | L4: -11.9 | M4: =IF(L4>-100,L4+0.6,L4) -> -11.3 | N4: -13.84 | O4: -11.84 | T4: -14.14 | U4: -12.14 | V4: -13.14 | W4: -10.64 | X4: -14.9 | Y4: -12.9 | Z4: -14.3 | AA4: -11.8 | AB4: -14.5 | AC4: -12 | AD4: 1.76 | AE4: 2.26 | AF4: -14.13666667 | AG4: -11.88666667
A5: Format 0 | B5: 1.25kHz | C5: Type A | D5: 15 | E5: 384 | F5: 0 | G5: 1T8R | H5: 2.1 | I5: TDLC300-100 | J5: 0 | K5: 2.55us | L5: =DerivingPerfReq(N5:AC5) -> -16.4 | M5: =IF(L5>-100,L5+0.6,L5) -> -15.8 | N5: -18.18 | O5: -16.18 | T5: -16.04 | U5: -14.04 | V5: -17.05 | W5: -14.55 | X5: -19.2 | Y5: -17.2 | Z5: -18.4 | AA5: -15.9 | AB5: -18.9 | AC5: -16.4 | AD5: =MAX(N5,P5,R5,T5,V5,X5,Z5,AB5)-MIN(N5,P5,R5,T5,V5,X5,Z5,AB5) -> 3.16 | AE5: =MAX(O5,Q5,S5,U5,W5,Y5,AA5,AC5)-MIN(O5,Q5,S5,U5,W5,Y5,AA5,AC5) -> 3.16 | AF5: =AVERAGE(N5,P5,R5,T5,V5,X5,Z5,AB5) -> -17.96166667 | AG5: =AVERAGE(O5,Q5,S5,U5,W5,Y5,AA5,AC5) -> -15.71166667

Sheet PRACH format0 Type B fading
A1: Format | B1: SCS | C1: Restricted set type | D1: Ncs | E1: Logical sequence index | F1: v | G1: Tx/Rx | H1: Carrier frequency(GHz) | I1: Propagation condition | J1: Frequency offset (Hz) | K1: Timing error tolerance | L1: 38.104 req | M1: 38.141 req | N1: Samsung | P1: ZTE | R1: CMCC | T1: CATT | V1: Nokia | X1: Huawei | Z1: Ericsson | AB1: Intel | AD1: SPAN | AF1: AVERAGE
N2: Ideal | O2: Impairment | P2: Ideal | Q2: Impairment | R2: Ideal | S2: Impairment | T2: Ideal | U2: Impairment | V2: Ideal | W2: Impairment | X2: Ideal | Y2: Impairment | Z2: Ideal | AA2: Impairment | AB2: Ideal | AC2: Impairment | AD2: Ideal | AE2: Impairment | AF2: Ideal | AG2: Impairment
A3: Format 0 | B3: 1.25kHz | C3: Type B | D3: 15 | E3: 30 | F3: 30 | G3: 1T2R | H3: 3.6 | I3: TDLC300-100 | J3: 0 | K3: 2.55us | L3: =DerivingPerfReq(N3:AC3) -> -6.1 | M3: =IF(L3>-100,L3+0.6,L3) -> -5.5 | N3: -8.25 | O3: -6.25 | T3: -8.16 | U3: -6.16 | V3: -7.36 | W3: -4.86 | X3: -9 | Y3: -7 | Z3: -8.8 | AA3: -6.3 | AB3: -8.7 | AC3: -6.2 | AD3: =MAX(N3,P3,R3,T3,V3,X3,Z3,AB3)-MIN(N3,P3,R3,T3,V3,X3,Z3,AB3) -> 1.64 | AE3: 2.14 | AF3: =AVERAGE(N3,P3,R3,T3,V3,X3,Z3,AB3) -> -8.378333333 | AG3: -6.128333333
A4: Format 0 | B4: 1.25kHz | C4: Type B | D4: 15 | E4: 30 | F4: 30 | G4: 1T4R | H4: 3.6 | I4: TDLC300-100 | J4: 0 | K4: 2.55us | L4: =DerivingPerfReq(N4:AC4) -> -11.8 | M4: =IF(L4>-100,L4+0.6,L4) -> -11.2 | N4: -13.74 | O4: -11.74 | T4: -13.46 | U4: -11.46 | V4: -12.35 | W4: -9.85 | X4: -14.5 | Y4: -12.5 | Z4: -14.1 | AA4: -11.6 | AB4: -14.4 | AC4: -11.9 | AD4: 2.15 | AE4: 2.65 | AF4: -13.75833333 | AG4: -11.50833333
A5: Format 0 | B5: 1.25kHz | C5: Type B | D5: 15 | E5: 30 | F5: 30 | G5: 1T8R | H5: 3.6 | I5: TDLC300-100 | J5: 0 | K5: 2.55us | L5: -16.2 | M5: =IF(L5>-100,L5+0.6,L5) -> -15.6 | N5: -18.08 | O5: -16.08 | T5: -15.86 | U5: -13.86 | V5: -16.33 | W5: -13.83 | X5: -18.8 | Y5: -16.8 | Z5: -18.2 | AA5: -15.7 | AB5: -18.8 | AC5: -16.3 | AD5: 2.94 | AE5: 2.97 | AF5: -17.67833333 | AG5: -15.42833333

Sheet PRACH 1.25kHz SCS Type A
A1: Format | B1: SCS | C1: Restricted set type | D1: Ncs | E1: Logical sequence index | F1: v | G1: Tx/Rx | H1: Carrier frequency(GHz) | I1: Propagation condition | J1: Frequency offset (Hz) | K1: Timing error tolerance | L1: 38.104 req | M1: 38.141 req | N1: Samsung | P1: ZTE | R1: CMCC | T1: CATT | V1: Nokia | X1: Huawei | Z1: Ericsson | AB1: Intel | AD1: SPAN | AF1: AVERAGE
N2: Ideal | O2: Impairment | P2: Ideal | Q2: Impairment | R2: Ideal | S2: Impairment | T2: Ideal | U2: Impairment | V2: Ideal | W2: Impairment | X2: Ideal | Y2: Impairment | Z2: Ideal | AA2: Impairment | AB2: Ideal | AC2: Impairment | AD2: Ideal | AE2: Impairment | AF2: Ideal | AG2: Impairment
A3: Format 0 | B3: 1.25kHz | C3: Type A | D3: 15 | E3: 384 | F3: 0 | G3: 1T2R | H3: 2.1 | I3: AWGN | J3: 625 | K3: 1.04us | L3: =DerivingPerfReq(N3:AC3) -> -12 | M3: =IF(L3>-100,L3+0.3,L3) -> -11.7 | N3: -14.36 | O3: -12.36 | P3: -16.5 | Q3: -13.5 | T3: -13.75 | U3: -11.75 | V3: -14.56 | W3: -12.06 | X3: -14.11 | Y3: -12.11 | Z3: -14.3 | AA3: -12 | AB3: -14.3 | AC3: -11.8 | AD3: =MAX(N3,P3,R3,T3,V3,X3,Z3,AB3)-MIN(N3,P3,R3,T3,V3,X3,Z3,AB3) -> 2.75 | AE3: =MAX(O3,Q3,S3,U3,W3,Y3,AA3,AC3)-MIN(O3,Q3,S3,U3,W3,Y3,AA3,AC3) -> 1.75 | AF3: =AVERAGE(N3,P3,R3,T3,V3,X3,Z3,AB3) -> -14.55428571 | AG3: =AVERAGE(O3,Q3,S3,U3,W3,Y3,AA3,AC3) -> -12.22571429
A4: Format 0 | B4: 1.25kHz | C4: Type A | D4: 15 | E4: 384 | F4: 0 | G4: 1T2R | H4: 2.1 | I4: AWGN | J4: 1340 | K4: 1.04us | L4: =DerivingPerfReq(N4:AC4) -> -13.8 | M4: -13.5 | N4: -16.09 | O4: -14.09 | P4: -16.5 | Q4: -13.5 | T4: -16.35 | U4: -14.35 | V4: -15.2 | W4: -12.7 | X4: -16.55 | Y4: -14.55 | Z4: -15.5 | AA4: -13.4 | AB4: -16.5 | AC4: -14 | AD4: =MAX(N4,P4,R4,T4,V4,X4,Z4,AB4)-MIN(N4,P4,R4,T4,V4,X4,Z4,AB4) -> 1.35 | AE4: =MAX(O4,Q4,S4,U4,W4,Y4,AA4,AC4)-MIN(O4,Q4,S4,U4,W4,Y4,AA4,AC4) -> 1.85 | AF4: =AVERAGE(N4,P4,R4,T4,V4,X4,Z4,AB4) -> -16.09857143 | AG4: =AVERAGE(O4,Q4,S4,U4,W4,Y4,AA4,AC4) -> -13.79857143
A5: Format 0 | B5: 1.25kHz | C5: Type A | D5: 15 | E5: 384 | F5: 0 | G5: 1T4R | H5: 2.1 | I5: AWGN | J5: 625 | K5: 1.04us | L5: -14.5 | M5: -14.2 | N5: -16.77 | O5: -14.77 | P5: -18.9 | Q5: -15.9 | T5: -16.08 | U5: -14.08 | V5: -16.87 | W5: -14.37 | X5: -17.02 | Y5: -15.02 | Z5: -16.7 | AA5: -14.5 | AB5: -16.5 | AC5: -14 | AD5: 2.82 | AE5: 1.9 | AF5: -16.97714286 | AG5: -14.66285714
A6: Format 0 | B6: 1.25kHz | C6: Type A | D6: 15 | E6: 384 | F6: 0 | G6: 1T4R | H6: 2.1 | I6: AWGN | J6: 1340 | K6: 1.04us | L6: -16.2 | M6: -15.9 | N6: -18.54 | O6: -16.54 | P6: -18.9 | Q6: -15.9 | T6: -18.76 | U6: -16.76 | V6: -17.51 | W6: -15.01 | X6: -19.41 | Y6: -17.41 | Z6: -17.9 | AA6: -15.4 | AB6: -18.8 | AC6: -16.3 | AD6: 1.9 | AE6: 2.4 | AF6: -18.54571429 | AG6: -16.18857143
A7: Format 0 | B7: 1.25kHz | C7: Type A | D7: 15 | E7: 384 | F7: 0 | G7: 1T8R | H7: 2.1 | I7: AWGN | J7: 625 | K7: 1.04us | L7: -16.5 | M7: -16.2 | N7: -19.09 | O7: -17.09 | P7: -21.4 | Q7: -18.4 | T7: -18.12 | U7: -16.12 | V7: -18.96 | W7: -16.46 | X7: -18.82 | Y7: -16.82 | Z7: -18.9 | AA7: -16.4 | AB7: -18.7 | AC7: -16.2 | AD7: 3.28 | AE7: 2.28 | AF7: -19.14142857 | AG7: -16.78428571
A8: Format 0 | B8: 1.25kHz | C8: Type A | D8: 15 | E8: 384 | F8: 0 | G8: 1T8R | H8: 2.1 | I8: AWGN | J8: 1340 | K8: 1.04us | L8: -18.4 | M8: -18.1 | N8: -20.99 | O8: -18.99 | P8: -21.4 | Q8: -18.4 | T8: -20.53 | U8: -18.53 | V8: -19.62 | W8: -17.12 | X8: -21.41 | Y8: -19.41 | Z8: -20.1 | AA8: -17.7 | AB8: -21.1 | AC8: -18.6 | AD8: 1.79 | AE8: 2.29 | AF8: -20.73571429 | AG8: -18.39285714

Sheet PRACH 1.25kHz SCS Type B
A1: Format | B1: SCS | C1: Restricted set type | D1: Ncs | E1: Logical sequence index | F1: v | G1: Tx/Rx | H1: Carrier frequency(GHz) | I1: Propagation condition | J1: Frequency offset (Hz) | K1: Timing error tolerance | L1: 38.104 req | M1: 38.141 req | N1: Samsung | P1: ZTE | R1: CMCC | T1: CATT | V1: Nokia | X1: Huawei | Z1: Ericsson | AB1: Intel | AD1: SPAN | AF1: AVERAGE
N2: Ideal | O2: Impairment | P2: Ideal | Q2: Impairment | R2: Ideal | S2: Impairment | T2: Ideal | U2: Impairment | V2: Ideal | W2: Impairment | X2: Ideal | Y2: Impairment | Z2: Ideal | AA2: Impairment | AB2: Ideal | AC2: Impairment | AD2: Ideal | AE2: Impairment | AF2: Ideal | AG2: Impairment
A3: Format 0 | B3: 1.25kHz | C3: Type B | D3: 15 | E3: 30 | F3: 30 | G3: 1T2R | H3: 3.6 | I3: AWGN | J3: 625 | K3: 1.04us | L3: =DerivingPerfReq(N3:AC3) -> -11.6 | M3: =IF(L3>-100,L3+0.3,L3) -> -11.3 | N3: -13.92 | O3: -11.92 | P3: -16.4 | Q3: -13.4 | T3: -12.86 | U3: -10.86 | V3: -14.16 | W3: -11.66 | X3: -14.27 | Y3: -12.27 | Z3: -15.7 | AA3: -13.6 | AB3: -14 | AC3: -11.5 | AD3: =MAX(N3,P3,R3,T3,V3,X3,Z3,AB3)-MIN(N3,P3,R3,T3,V3,X3,Z3,AB3) -> 3.54 | AE3: =MAX(O3,Q3,S3,U3,W3,Y3,AA3,AC3)-MIN(O3,Q3,S3,U3,W3,Y3,AA3,AC3) -> 2.74 | AF3: =AVERAGE(N3,P3,R3,T3,V3,X3,Z3,AB3) -> -14.47285714 | AG3: =AVERAGE(O3,Q3,S3,U3,W3,Y3,AA3,AC3) -> -12.17285714
A4: Format 0 | B4: 1.25kHz | C4: Type B | D4: 15 | E4: 30 | F4: 30 | G4: 1T2R | H4: 3.6 | I4: AWGN | J4: 2334 | K4: 1.04us | L4: =DerivingPerfReq(N4:AC4) -> -13.1 | M4: =IF(L4>-100,L4+0.3,L4) -> -12.8 | N4: -15.8 | O4: -13.8 | P4: -16.4 | Q4: -13.4 | T4: -15.51 | U4: -13.51 | V4: -14.61 | W4: -12.11 | X4: -14.87 | Y4: -12.87 | Z4: -14.4 | AA4: -11.9 | AB4: -16.3 | AC4: -13.8 | AD4: =MAX(N4,P4,R4,T4,V4,X4,Z4,AB4)-MIN(N4,P4,R4,T4,V4,X4,Z4,AB4) -> 2 | AE4: =MAX(O4,Q4,S4,U4,W4,Y4,AA4,AC4)-MIN(O4,Q4,S4,U4,W4,Y4,AA4,AC4) -> 1.9 | AF4: =AVERAGE(N4,P4,R4,T4,V4,X4,Z4,AB4) -> -15.41285714 | AG4: =AVERAGE(O4,Q4,S4,U4,W4,Y4,AA4,AC4) -> -13.05571429
A5: Format 0 | B5: 1.25kHz | C5: Type B | D5: 15 | E5: 30 | F5: 30 | G5: 1T4R | H5: 3.6 | I5: AWGN | J5: 625 | K5: 1.04us | L5: -14 | M5: -13.7 | N5: -16.31 | O5: -14.31 | P5: -18.1 | Q5: -15.1 | T5: -15.33 | U5: -13.33 | V5: -16.34 | W5: -13.84 | X5: -16.65 | Y5: -14.65 | Z5: -17.9 | AA5: -15.7 | AB5: -16.3 | AC5: -13.8 | AD5: 2.77 | AE5: 2.37 | AF5: -16.70428571 | AG5: -14.39
A6: Format 0 | B6: 1.25kHz | C6: Type B | D6: 15 | E6: 30 | F6: 30 | G6: 1T4R | H6: 3.6 | I6: AWGN | J6: 2334 | K6: 1.04us | L6: -15.4 | M6: -15.1 | N6: -18.28 | O6: -16.28 | P6: -18.1 | Q6: -15.1 | T6: -18.01 | U6: -16.01 | V6: -16.72 | W6: -14.22 | X6: -17.63 | Y6: -15.63 | Z6: -16.7 | AA6: -14.6 | AB6: -18.5 | AC6: -16 | AD6: 1.8 | AE6: 2.06 | AF6: -17.70571429 | AG6: -15.40571429
A7: Format 0 | B7: 1.25kHz | C7: Type B | D7: 15 | E7: 30 | F7: 30 | G7: 1T8R | H7: 3.6 | I7: AWGN | J7: 625 | K7: 1.04us | L7: -16.3 | M7: -16 | N7: -18.55 | O7: -16.55 | P7: -19.5 | Q7: -16.5 | T7: -17.34 | U7: -15.34 | V7: -18.32 | W7: -15.82 | X7: -18.63 | Y7: -16.63 | Z7: -20.1 | AA7: -17.7 | AB7: -18.4 | AC7: -15.9 | AD7: 2.76 | AE7: 2.36 | AF7: -18.69142857 | AG7: -16.34857143
A8: Format 0 | B8: 1.25kHz | C8: Type B | D8: 15 | E8: 30 | F8: 30 | G8: 1T8R | H8: 3.6 | I8: AWGN | J8: 2334 | K8: 1.04us | L8: -17.4 | M8: -17.1 | N8: -20.63 | O8: -18.63 | P8: -19.5 | Q8: -16.5 | T8: -19.78 | U8: -17.78 | V8: -18.73 | W8: -16.23 | X8: -19.89 | Y8: -17.89 | Z8: -18.9 | AA8: -16.9 | AB8: -20.7 | AC8: -18.2 | AD8: 1.97 | AE8: 2.4 | AF8: -19.73285714 | AG8: -17.44714286

Sheet PRACH 15kHz SCS
A1: Format | B1: SCS | C1: Ncs | D1: Logical sequence index | E1: v | F1: Tx/Rx | G1: Carrier frequency(GHz) | H1: Propagation condition | I1: Frequency offset (Hz) | J1: Timing error tolerance | K1: 38.104 req | L1: 38.141 req | M1: Samsung | O1: ZTE | Q1: CMCC | S1: CATT | U1: Nokia | W1: Huawei | Y1: Ericsson | AA1: Intel | AC1: SPAN | AE1: AVERAGE
M2: Ideal | N2: Impairment | O2: Ideal | P2: Impairment | Q2: Ideal | R2: Impairment | S2: Ideal | T2: Impairment | U2: Ideal | V2: Impairment | W2: Ideal | X2: Impairment | Y2: Ideal | Z2: Impairment | AA2: Ideal | AB2: Impairment | AC2: Ideal | AD2: Impairment | AE2: Ideal | AF2: Impairment
A3: Format A2 | B3: 15kHz | C3: 23 | D3: 0 | E3: 0 | F3: 1T2R | G3: 1.8 | H3: AWGN | I3: 1740 | J3: 0.52us | K3: =DerivingPerfReq(M3:AB3) -> -11.3 | L3: =IF(K3>-100,K3+0.3,K3) -> -11 | M3: -13.23 | N3: -11.23 | O3: -13.7 | P3: -10.7 | S3: -13.29 | T3: -11.29 | U3: -11.48 | V3: -8.98 | W3: -13.66 | X3: -11.66 | Y3: -13.8 | Z3: -11.4 | AA3: -13.9 | AB3: -11.4 | AC3: =MAX(M3,O3,Q3,S3,U3,W3,Y3,AA3)-MIN(M3,O3,Q3,S3,U3,W3,Y3,AA3) -> 2.42 | AD3: =MAX(N3,P3,R3,T3,V3,X3,Z3,AB3)-MIN(N3,P3,R3,T3,V3,X3,Z3,AB3) -> 2.68 | AE3: =AVERAGE(M3,O3,Q3,S3,U3,W3,Y3,AA3) -> -13.29428571 | AF3: =AVERAGE(N3,P3,R3,T3,V3,X3,Z3,AB3) -> -10.95142857
A4: Format B4 | B4: 15kHz | C4: 23 | D4: 0 | E4: 0 | F4: 1T2R | G4: 1.8 | H4: AWGN | I4: 1740 | J4: 0.52us | K4: =DerivingPerfReq(M4:AB4) -> -14.3 | L4: -14 | M4: -16.73 | N4: -14.73 | O4: -17.1 | P4: -14.1 | S4: -16.51 | T4: -14.51 | U4: -15.58 | V4: -13.08 | W4: -17.15 | X4: -15.15 | Y4: -16.4 | Z4: -14.1 | AA4: -16.9 | AB4: -14.4 | AC4: =MAX(M4,O4,Q4,S4,U4,W4,Y4,AA4)-MIN(M4,O4,Q4,S4,U4,W4,Y4,AA4) -> 1.57 | AD4: =MAX(N4,P4,R4,T4,V4,X4,Z4,AB4)-MIN(N4,P4,R4,T4,V4,X4,Z4,AB4) -> 2.07 | AE4: =AVERAGE(M4,O4,Q4,S4,U4,W4,Y4,AA4) -> -16.62428571 | AF4: =AVERAGE(N4,P4,R4,T4,V4,X4,Z4,AB4) -> -14.29571429
A5: Format C2 | B5: 15kHz | C5: 23 | D5: 0 | E5: 0 | F5: 1T2R | G5: 1.8 | H5: AWGN | I5: 1740 | J5: 0.52us | K5: -11.1 | L5: -10.8 | M5: -13.25 | N5: -11.25 | O5: -13.7 | P5: -10.7 | S5: -13.31 | T5: -11.31 | U5: -11.51 | V5: -9.01 | W5: -13.63 | X5: -11.63 | Y5: -13.1 | Z5: -10.6 | AA5: -13.9 | AB5: -11.4 | AC5: 2.39 | AD5: 2.62 | AE5: -13.2 | AF5: -10.84285714
A6: Format A2 | B6: 15kHz | C6: 23 | D6: 0 | E6: 0 | F6: 1T4R | G6: 1.8 | H6: AWGN | I6: 1740 | J6: 0.52us | K6: -13.5 | L6: =IF(K6>-100,K6+0.3,K6) -> -13.2 | M6: -15.47 | N6: -13.47 | O6: -15.9 | P6: -12.9 | S6: -15.32 | T6: -13.32 | U6: -13.89 | V6: -11.39 | W6: -15.89 | X6: -13.89 | Y6: -16.1 | Z6: -13.6 | AA6: -16.1 | AB6: -13.6 | AC6: 2.21 | AD6: 2.5 | AE6: -15.52428571 | AF6: -13.16714286
A7: Format B4 | B7: 15kHz | C7: 23 | D7: 0 | E7: 0 | F7: 1T4R | G7: 1.8 | H7: AWGN | I7: 1740 | J7: 0.52us | K7: -16.7 | L7: -16.4 | M7: -18.84 | N7: -16.84 | O7: -19.8 | P7: -16.8 | S7: -18.49 | T7: -16.49 | U7: -17.6 | V7: -15.1 | W7: -19.31 | X7: -17.31 | Y7: -18.7 | Z7: -16.5 | AA7: -18.9 | AB7: -16.4 | AC7: 2.2 | AD7: 2.21 | AE7: -18.80571429 | AF7: -16.49142857
A8: Format C2 | B8: 15kHz | C8: 23 | D8: 0 | E8: 0 | F8: 1T4R | G8: 1.8 | H8: AWGN | I8: 1740 | J8: 0.52us | K8: -13.4 | L8: -13.1 | M8: -15.48 | N8: -13.48 | O8: -16 | P8: -13 | S8: -15.34 | T8: -13.34 | U8: -13.89 | V8: -11.39 | W8: -15.82 | X8: -13.82 | Y8: -15.5 | Z8: -13.2 | AA8: -16.1 | AB8: -13.6 | AC8: 2.21 | AD8: 2.43 | AE8: -15.44714286 | AF8: -13.11857143
A9: Format A2 | B9: 15kHz | C9: 23 | D9: 0 | E9: 0 | F9: 1T8R | G9: 1.8 | H9: AWGN | I9: 1740 | J9: 0.52us | K9: -15.6 | L9: =IF(K9>-100,K9+0.3,K9) -> -15.3 | M9: -17.59 | N9: -15.59 | O9: -18.1 | P9: -15.1 | S9: -17.35 | T9: -15.35 | U9: -15.51 | V9: -13.01 | W9: -17.96 | X9: -15.96 | Y9: -18.3 | Z9: -16 | AA9: -18.2 | AB9: -15.7 | AC9: 2.79 | AD9: 2.99 | AE9: -17.57285714 | AF9: -15.24428571
A10: Format B4 | B10: 15kHz | C10: 23 | D10: 0 | E10: 0 | F10: 1T8R | G10: 1.8 | H10: AWGN | I10: 1740 | J10: 0.52us | K10: -18.2 | L10: -17.9 | M10: -20.8 | N10: -18.8 | O10: -20.4 | P10: -17.4 | S10: -20.26 | T10: -18.26 | U10: -19.22 | V10: -16.72 | W10: -21.12 | X10: -19.12 | Y10: -20.9 | Z10: -18.6 | AA10: -20.8 | AB10: -18.3 | AC10: 1.9 | AD10: 2.4 | AE10: -20.5 | AF10: -18.17142857
A11: Format C2 | B11: 15kHz | C11: 23 | D11: 0 | E11: 0 | F11: 1T8R | G11: 1.8 | H11: AWGN | I11: 1740 | J11: 0.52us | K11: -15.5 | L11: -15.2 | M11: -17.53 | N11: -15.53 | O11: -18 | P11: -15 | S11: -17.33 | T11: -15.33 | U11: -15.5 | V11: -13 | W11: -17.89 | X11: -15.89 | Y11: -17.6 | Z11: -15.5 | AA11: -18.2 | AB11: -15.7 | AC11: =MAX(M11,O11,Q11,S11,U11,W11,Y11,AA11)-MIN(M11,O11,Q11,S11,U11,W11,Y11,AA11) -> 2.7 | AD11: =MAX(N11,P11,R11,T11,V11,X11,Z11,AB11)-MIN(N11,P11,R11,T11,V11,X11,Z11,AB11) -> 2.89 | AE11: =AVERAGE(M11,O11,Q11,S11,U11,W11,Y11,AA11) -> -17.43571429 | AF11: =AVERAGE(N11,P11,R11,T11,V11,X11,Z11,AB11) -> -15.13571429

Sheet PRACH 30kHz SCS
A1: Format | B1: SCS | C1: Ncs | D1: Logical sequence index | E1: v | F1: Tx/Rx | G1: Carrier frequency(GHz) | H1: Propagation condition | I1: Frequency offset (Hz) | J1: Timing error tolerance | K1: 38.104 req | L1: 38.141 req | M1: Samsung | O1: ZTE | Q1: CMCC | S1: CATT | U1: Nokia | W1: Huawei | Y1: Ericsson | AA1: Intel | AC1: SPAN | AE1: AVERAGE
M2: Ideal | N2: Impairment | O2: Ideal | P2: Impairment | Q2: Ideal | R2: Impairment | S2: Ideal | T2: Impairment | U2: Ideal | V2: Impairment | W2: Ideal | X2: Impairment | Y2: Ideal | Z2: Impairment | AA2: Ideal | AB2: Impairment | AC2: Ideal | AD2: Impairment | AE2: Ideal | AF2: Impairment
A3: Format A2 | B3: 30kHz | C3: 46 | D3: 0 | E3: 0 | F3: 1T2R | G3: 3.6 | H3: AWGN | I3: 3334 | J3: 0.26us | K3: =DerivingPerfReq(M3:AB3) -> -11.2 | L3: =IF(K3>-100,K3+0.3,K3) -> -10.9 | M3: -13.1 | N3: -11.1 | O3: -14.8 | P3: -11.8 | S3: -13.19 | T3: -11.19 | U3: -13.54 | V3: -11.04 | W3: -13.42 | X3: -11.42 | Y3: -13.7 | Z3: -11.2 | AA3: -13.4 | AB3: -10.9 | AC3: =MAX(M3,O3,Q3,S3,U3,W3,Y3,AA3)-MIN(M3,O3,Q3,S3,U3,W3,Y3,AA3) -> 1.7 | AD3: =MAX(N3,P3,R3,T3,V3,X3,Z3,AB3)-MIN(N3,P3,R3,T3,V3,X3,Z3,AB3) -> 0.9 | AE3: =AVERAGE(M3,O3,Q3,S3,U3,W3,Y3,AA3) -> -13.59285714 | AF3: =AVERAGE(N3,P3,R3,T3,V3,X3,Z3,AB3) -> -11.23571429
A4: Format B4 | B4: 30kHz | C4: 46 | D4: 0 | E4: 0 | F4: 1T2R | G4: 3.6 | H4: AWGN | I4: 3334 | J4: 0.26us | K4: =DerivingPerfReq(M4:AB4) -> -14.6 | L4: -14.3 | M4: -16.7 | N4: -14.7 | O4: -17.3 | P4: -14.3 | S4: -16.41 | T4: -14.41 | U4: -17.31 | V4: -14.81 | W4: -17.43 | X4: -15.43 | Y4: -16.4 | Z4: -14.4 | AA4: -16.7 | AB4: -14.2 | AC4: =MAX(M4,O4,Q4,S4,U4,W4,Y4,AA4)-MIN(M4,O4,Q4,S4,U4,W4,Y4,AA4) -> 1.03 | AD4: =MAX(N4,P4,R4,T4,V4,X4,Z4,AB4)-MIN(N4,P4,R4,T4,V4,X4,Z4,AB4) -> 1.23 | AE4: =AVERAGE(M4,O4,Q4,S4,U4,W4,Y4,AA4) -> -16.89285714 | AF4: =AVERAGE(N4,P4,R4,T4,V4,X4,Z4,AB4) -> -14.60714286
A5: Format C2 | B5: 30kHz | C5: 46 | D5: 0 | E5: 0 | F5: 1T2R | G5: 3.6 | H5: AWGN | I5: 3334 | J5: 0.26us | K5: -11 | L5: -10.7 | M5: -13.13 | N5: -11.13 | O5: -13.8 | P5: -10.8 | S5: -13.19 | T5: -11.19 | U5: -13.55 | V5: -11.05 | W5: -13.66 | X5: -11.66 | Y5: -13 | Z5: -10.5 | AA5: -13.4 | AB5: -10.9 | AC5: 0.8 | AD5: 1.16 | AE5: -13.39 | AF5: -11.03285714
A6: Format A2 | B6: 30kHz | C6: 46 | D6: 0 | E6: 0 | F6: 1T4R | G6: 3.6 | H6: AWGN | I6: 3334 | J6: 0.26us | K6: -13.4 | L6: =IF(K6>-100,K6+0.3,K6) -> -13.1 | M6: -15.39 | N6: -13.39 | O6: -16 | P6: -13 | S6: -15.25 | T6: -13.25 | U6: -15.68 | V6: -13.18 | W6: -15.76 | X6: -13.76 | Y6: -16.1 | Z6: -13.9 | AA6: -15.9 | AB6: -13.4 | AC6: 0.85 | AD6: 0.9 | AE6: -15.72571429 | AF6: -13.41142857
A7: Format B4 | B7: 30kHz | C7: 46 | D7: 0 | E7: 0 | F7: 1T4R | G7: 3.6 | H7: AWGN | I7: 3334 | J7: 0.26us | K7: -16.7 | L7: -16.4 | M7: -18.74 | N7: -16.74 | O7: -20 | P7: -17 | S7: -18.33 | T7: -16.33 | U7: -19.26 | V7: -16.76 | W7: -19.51 | X7: -17.51 | Y7: -18.6 | Z7: -16.1 | AA7: -18.8 | AB7: -16.3 | AC7: 1.67 | AD7: 1.41 | AE7: -19.03428571 | AF7: -16.67714286
A8: Format C2 | B8: 30kHz | C8: 46 | D8: 0 | E8: 0 | F8: 1T4R | G8: 3.6 | H8: AWGN | I8: 3334 | J8: 0.26us | K8: -13.4 | L8: -13.1 | M8: -15.38 | N8: -13.38 | O8: -16 | P8: -13 | S8: -15.25 | T8: -13.25 | U8: -15.7 | V8: -13.2 | W8: -15.87 | X8: -13.87 | Y8: -15.5 | Z8: -13.5 | AA8: -16 | AB8: -13.5 | AC8: 0.75 | AD8: 0.87 | AE8: -15.67142857 | AF8: -13.38571429
A9: Format A2 | B9: 30kHz | C9: 46 | D9: 0 | E9: 0 | F9: 1T8R | G9: 3.6 | H9: AWGN | I9: 3334 | J9: 0.26us | K9: -15.4 | L9: =IF(K9>-100,K9+0.3,K9) -> -15.1 | M9: -17.45 | N9: -15.45 | O9: -18.2 | P9: -15.2 | S9: -17.27 | T9: -15.27 | U9: -17.43 | V9: -14.93 | W9: -17.86 | X9: -15.86 | Y9: -18.2 | Z9: -15.8 | AA9: -18.1 | AB9: -15.6 | AC9: 0.93 | AD9: 0.93 | AE9: -17.78714286 | AF9: -15.44428571
A10: Format B4 | B10: 30kHz | C10: 46 | D10: 0 | E10: 0 | F10: 1T8R | G10: 3.6 | H10: AWGN | I10: 3334 | J10: 0.26us | K10: -18.4 | L10: -18.1 | M10: -20.65 | N10: -18.65 | O10: -20.1 | P10: -17.1 | S10: -20.2 | T10: -18.2 | U10: -20.8 | V10: -18.3 | W10: -21.49 | X10: -19.49 | Y10: -20.8 | Z10: -18.7 | AA10: -20.6 | AB10: -18.1 | AC10: 1.39 | AD10: 2.39 | AE10: -20.66285714 | AF10: -18.36285714
A11: Format C2 | B11: 30kHz | C11: 46 | D11: 0 | E11: 0 | F11: 1T8R | G11: 3.6 | H11: AWGN | I11: 3334 | J11: 0.26us | K11: -15.4 | L11: -15.1 | M11: -17.45 | N11: -15.45 | O11: -18.1 | P11: -15.1 | S11: -17.24 | T11: -15.24 | U11: -17.39 | V11: -14.89 | W11: -17.89 | X11: -15.89 | Y11: -17.6 | Z11: -15.6 | AA11: -18.1 | AB11: -15.6 | AC11: 0.86 | AD11: 1 | AE11: -17.68142857 | AF11: -15.39571429
